{"text_format":"1","workbook":"xlsx","n_sheets":5,"sheets":["Transaction","Receipt","Items2023","Items2023 original","InitialStock2021-2022"],"not_rendered":{"charts":0,"images":0,"macros":1,"external_links":1,"defined_names":18,"comments":0,"pivot_tables":0},"unopened":[],"bounds":{"document_bytes":16777216,"sheet_cells":100000,"rows_first":2000,"rows_last":500,"rows_between":2000,"halvings":0,"cell_chars":16384,"cell_head_chars":4096},"cells_cut":0,"cells_raw":0,"read":"whole","date_system":"1900"}

{"sheet":"Transaction","index":0,"n_rows":13,"n_cols":18,"rows_kept":13,"cut":false,"hidden":false,"merged":[]}
[]
["Date","ItemCode","Description","Unit Price USD","Quantity in Stock","Transaction Type","Quantity","TotalItem","Receipt number","NewStock","exchange rate","RecAmt in LBP","RecAmt in USD","Nom","Notes",null,"Price",{"$f":"SUM(Q3:Q5551)","v":0}]
["2022-09-14","C0-Tergal-3","C0-Tergal-3",{"$f":"IF(B3=\"\",\"\",VLOOKUP(B3,data_items,8,FALSE))","v":0.2},6,"Sell",2,{"$f":"D3*G3","v":0.4},1,4,null,null,null,null,null,"Locked"]
["2022-09-14","C12-F-LS-10","C12-F-LS-10",3,257,"Sell",1,{"$f":"D4*G4","v":3},1,256,null,null,null,null,null,"Locked"]
["2022-09-14","C12-M-LS-8","C12-M-LS-8",3,259,"Sell",2,6,2,257,null,null,null,null,null,"Locked"]
["2022-09-14","C12-F-LS-12","C12-F-LS-12",1,218,"Sell",1,1,2,217,null,null,null,null,null,"Locked"]
["2022-09-14","C12-F-LS-14","C12-F-LS-14",1.2,171,"Sell",2,2.4,2,168,null,null,null,null,null,"Locked"]
["2022-09-15","C34-M-LS-XL","C34-M-LS-XL",1.2,50,"Sell",2,2.4,3,48,null,null,null,null,null,"Locked"]
["2022-09-15","C34-M-SS-M","C34-M-SS-M",1.5,144,"Sell",3,4.5,3,141,null,null,null,null,null,"Locked"]
["2022-09-15","CA-Gilet-L","CA-Gilet-L",1.1000000000000001,100,"Sell",5,{"$f":"D10*G10","v":5.5},3,95,null,null,null,null,null,"Locked"]
["2022-09-15","CA-SP-Blouse-2XS","CA-SP-Blouse-2XS",1.2,13,"Sell",4,{"$f":"D11*G11","v":4.8},3,9,null,null,null,null,null,"Locked"]
["2022-09-15","CA-BL-SS-Blue-4","CA-BL-SS-Blue-4",1.6,47,"Sell",2,3.2,3,45,null,null,null,null,null,"Locked"]
[null,null,null,""]

{"sheet":"Receipt","index":1,"n_rows":18,"n_cols":13,"rows_kept":18,"cut":false,"hidden":false,"merged":[[3,1,3,2]]}
[null,null,null,null,"Receipt NB:",3,null,null,null,null,null,1]
["Receipt Nb",3,null,null,null,null,null,null,null,null,null,2]
["Date",{"$f":"IFERROR(INDEX(Transaction!A:A,_xlfn.AGGREGATE(15,6,ROW(Transaction!A$3:A$12)/(Transaction!$I$3:$I$12=Receipt!$B$2),ROWS(B$3:B3))),\"\")","v":"2022-09-15"},null,null,null,null,null,null,null,null,null,3,{"$f":"IFERROR(INDIRECT(Transaction!I3&\"m3\"),\"\")","v":""}]
[]
["Description","Qty ","Price"]
[{"$f":"IFERROR(INDEX(Transaction!C:C,_xlfn.AGGREGATE(15,6,ROW(Transaction!C$3:C$12)/(Transaction!$I$3:$I$12=Receipt!$B$2),ROWS(A$6:A6))),\"\")","v":"C34-M-LS-XL"},{"$f":"IFERROR(INDEX(Transaction!G:G,_xlfn.AGGREGATE(15,6,ROW(Transaction!G$3:G$12)/(Transaction!$I$3:$I$12=Receipt!$B$2),ROWS(B$6:B6))),\"\")","v":2},{"$f":"IFERROR(INDEX(Transaction!D:D,_xlfn.AGGREGATE(15,6,ROW(Transaction!D$3:D$12)/(Transaction!$I$3:$I$12=Receipt!$B$2),ROWS(D$6:D6))),\"\")","v":1.2},{"$f":"IFERROR(B6*C6,\"\")","v":2.4}]
[{"$f":"IFERROR(INDEX(Transaction!C:C,_xlfn.AGGREGATE(15,6,ROW(Transaction!C$3:C$12)/(Transaction!$I$3:$I$12=Receipt!$B$2),ROWS(A$6:A7))),\"\")","v":"C34-M-SS-M"},{"$f":"IFERROR(INDEX(Transaction!G:G,_xlfn.AGGREGATE(15,6,ROW(Transaction!G$3:G$12)/(Transaction!$I$3:$I$12=Receipt!$B$2),ROWS(B$6:B7))),\"\")","v":3},{"$f":"IFERROR(INDEX(Transaction!D:D,_xlfn.AGGREGATE(15,6,ROW(Transaction!D$3:D$12)/(Transaction!$I$3:$I$12=Receipt!$B$2),ROWS(D$6:D7))),\"\")","v":1.5},{"$f":"IFERROR(B7*C7,\"\")","v":4.5}]
[{"$f":"IFERROR(INDEX(Transaction!C:C,_xlfn.AGGREGATE(15,6,ROW(Transaction!C$3:C$12)/(Transaction!$I$3:$I$12=Receipt!$B$2),ROWS(A$6:A8))),\"\")","v":"CA-Gilet-L"},{"$f":"IFERROR(INDEX(Transaction!G:G,_xlfn.AGGREGATE(15,6,ROW(Transaction!G$3:G$12)/(Transaction!$I$3:$I$12=Receipt!$B$2),ROWS(B$6:B8))),\"\")","v":5},{"$f":"IFERROR(INDEX(Transaction!D:D,_xlfn.AGGREGATE(15,6,ROW(Transaction!D$3:D$12)/(Transaction!$I$3:$I$12=Receipt!$B$2),ROWS(D$6:D8))),\"\")","v":1.1000000000000001},5.5]
[{"$f":"IFERROR(INDEX(Transaction!C:C,_xlfn.AGGREGATE(15,6,ROW(Transaction!C$3:C$12)/(Transaction!$I$3:$I$12=Receipt!$B$2),ROWS(A$6:A9))),\"\")","v":"CA-SP-Blouse-2XS"},{"$f":"IFERROR(INDEX(Transaction!G:G,_xlfn.AGGREGATE(15,6,ROW(Transaction!G$3:G$12)/(Transaction!$I$3:$I$12=Receipt!$B$2),ROWS(B$6:B9))),\"\")","v":4},{"$f":"IFERROR(INDEX(Transaction!D:D,_xlfn.AGGREGATE(15,6,ROW(Transaction!D$3:D$12)/(Transaction!$I$3:$I$12=Receipt!$B$2),ROWS(D$6:D9))),\"\")","v":1.2},4.8]
[{"$f":"IFERROR(INDEX(Transaction!C:C,_xlfn.AGGREGATE(15,6,ROW(Transaction!C$3:C$12)/(Transaction!$I$3:$I$12=Receipt!$B$2),ROWS(A$6:A10))),\"\")","v":"CA-BL-SS-Blue-4"},{"$f":"IFERROR(INDEX(Transaction!G:G,_xlfn.AGGREGATE(15,6,ROW(Transaction!G$3:G$12)/(Transaction!$I$3:$I$12=Receipt!$B$2),ROWS(B$6:B10))),\"\")","v":2},{"$f":"IFERROR(INDEX(Transaction!D:D,_xlfn.AGGREGATE(15,6,ROW(Transaction!D$3:D$12)/(Transaction!$I$3:$I$12=Receipt!$B$2),ROWS(D$6:D10))),\"\")","v":1.6},3.2]
[{"$f":"IFERROR(INDEX(Transaction!C:C,_xlfn.AGGREGATE(15,6,ROW(Transaction!C$3:C$12)/(Transaction!$I$3:$I$12=Receipt!$B$2),ROWS(A$6:A11))),\"\")","v":""},{"$f":"IFERROR(INDEX(Transaction!G:G,_xlfn.AGGREGATE(15,6,ROW(Transaction!G$3:G$12)/(Transaction!$I$3:$I$12=Receipt!$B$2),ROWS(B$6:B11))),\"\")","v":""},{"$f":"IFERROR(INDEX(Transaction!D:D,_xlfn.AGGREGATE(15,6,ROW(Transaction!D$3:D$12)/(Transaction!$I$3:$I$12=Receipt!$B$2),ROWS(D$6:D11))),\"\")","v":""},""]
[{"$f":"IFERROR(INDEX(Transaction!C:C,_xlfn.AGGREGATE(15,6,ROW(Transaction!C$3:C$12)/(Transaction!$I$3:$I$12=Receipt!$B$2),ROWS(A$6:A12))),\"\")","v":""},{"$f":"IFERROR(INDEX(Transaction!G:G,_xlfn.AGGREGATE(15,6,ROW(Transaction!G$3:G$12)/(Transaction!$I$3:$I$12=Receipt!$B$2),ROWS(B$6:B12))),\"\")","v":""},{"$f":"IFERROR(INDEX(Transaction!D:D,_xlfn.AGGREGATE(15,6,ROW(Transaction!D$3:D$12)/(Transaction!$I$3:$I$12=Receipt!$B$2),ROWS(D$6:D12))),\"\")","v":""},""]
[{"$f":"IFERROR(INDEX(Transaction!C:C,_xlfn.AGGREGATE(15,6,ROW(Transaction!C$3:C$12)/(Transaction!$I$3:$I$12=Receipt!$B$2),ROWS(A$6:A13))),\"\")","v":""},{"$f":"IFERROR(INDEX(Transaction!G:G,_xlfn.AGGREGATE(15,6,ROW(Transaction!G$3:G$12)/(Transaction!$I$3:$I$12=Receipt!$B$2),ROWS(B$6:B13))),\"\")","v":""},{"$f":"IFERROR(INDEX(Transaction!D:D,_xlfn.AGGREGATE(15,6,ROW(Transaction!D$3:D$12)/(Transaction!$I$3:$I$12=Receipt!$B$2),ROWS(D$6:D13))),\"\")","v":""},""]
[{"$f":"IFERROR(INDEX(Transaction!C:C,_xlfn.AGGREGATE(15,6,ROW(Transaction!C$3:C$12)/(Transaction!$I$3:$I$12=Receipt!$B$2),ROWS(A$6:A14))),\"\")","v":""},{"$f":"IFERROR(INDEX(Transaction!G:G,_xlfn.AGGREGATE(15,6,ROW(Transaction!G$3:G$12)/(Transaction!$I$3:$I$12=Receipt!$B$2),ROWS(B$6:B14))),\"\")","v":""},{"$f":"IFERROR(INDEX(Transaction!D:D,_xlfn.AGGREGATE(15,6,ROW(Transaction!D$3:D$12)/(Transaction!$I$3:$I$12=Receipt!$B$2),ROWS(D$6:D14))),\"\")","v":""},""]
[{"$f":"IFERROR(INDEX(Transaction!C:C,_xlfn.AGGREGATE(15,6,ROW(Transaction!C$3:C$12)/(Transaction!$I$3:$I$12=Receipt!$B$2),ROWS(A$6:A15))),\"\")","v":""},{"$f":"IFERROR(INDEX(Transaction!G:G,_xlfn.AGGREGATE(15,6,ROW(Transaction!G$3:G$12)/(Transaction!$I$3:$I$12=Receipt!$B$2),ROWS(B$6:B15))),\"\")","v":""},{"$f":"IFERROR(INDEX(Transaction!D:D,_xlfn.AGGREGATE(15,6,ROW(Transaction!D$3:D$12)/(Transaction!$I$3:$I$12=Receipt!$B$2),ROWS(D$6:D15))),\"\")","v":""},""]
[{"$f":"IFERROR(INDEX(Transaction!C:C,_xlfn.AGGREGATE(15,6,ROW(Transaction!C$3:C$12)/(Transaction!$I$3:$I$12=Receipt!$B$2),ROWS(A$6:A16))),\"\")","v":""},{"$f":"IFERROR(INDEX(Transaction!G:G,_xlfn.AGGREGATE(15,6,ROW(Transaction!G$3:G$12)/(Transaction!$I$3:$I$12=Receipt!$B$2),ROWS(B$6:B16))),\"\")","v":""},{"$f":"IFERROR(INDEX(Transaction!D:D,_xlfn.AGGREGATE(15,6,ROW(Transaction!D$3:D$12)/(Transaction!$I$3:$I$12=Receipt!$B$2),ROWS(D$6:D16))),\"\")","v":""},""]
[{"$f":"IFERROR(INDEX(Transaction!C:C,_xlfn.AGGREGATE(15,6,ROW(Transaction!C$3:C$12)/(Transaction!$I$3:$I$12=Receipt!$B$2),ROWS(A$6:A17))),\"\")","v":""},{"$f":"IFERROR(INDEX(Transaction!G:G,_xlfn.AGGREGATE(15,6,ROW(Transaction!G$3:G$12)/(Transaction!$I$3:$I$12=Receipt!$B$2),ROWS(B$6:B17))),\"\")","v":""},{"$f":"IFERROR(INDEX(Transaction!D:D,_xlfn.AGGREGATE(15,6,ROW(Transaction!D$3:D$12)/(Transaction!$I$3:$I$12=Receipt!$B$2),ROWS(D$6:D17))),\"\")","v":""},""]
[{"$f":"IFERROR(INDEX(Transaction!C:C,_xlfn.AGGREGATE(15,6,ROW(Transaction!C$3:C$12)/(Transaction!$I$3:$I$12=Receipt!$B$2),ROWS(A$6:A18))),\"\")","v":""},{"$f":"SUM(B6:B17)","v":16},{"$f":"SUM(D6:D17)","v":20.399999999999999},326.39999999999998]

{"sheet":"Items2023","index":2,"n_rows":231,"n_cols":14,"rows_kept":231,"cut":false,"hidden":false,"merged":[]}
["CategoryNb","Category","ItemCode","Barcode description","Current Quantity in Stock","Size","Size Description","Barcode description","OLD Price (LBP)","Price 2023","Unit (LBP/USD)","Notes","Original Quantity in Stock (delivered in 2020-2021)","Original Quantity in Stock Sep"]
["N01","C0-Tergal","C0-Tergal-3","C0-Tergal-3",4,3,"3 سنوات","مريول tergal   لقسم الروضات مع تطريز إضافي أحرف وأرقام والشعار -قياس : 3",100000,0.2,null,null,57,5]
["N01","C0-Tergal","C0-Tergal-4","C0-Tergal-4",189,4,"3 سنوات","مريول tergal   لقسم الروضات مع تطريز إضافي أحرف وأرقام والشعار -قياس : 4",100000,0.3,null,null,255,189]
["N01","C0-Tergal","C0-Tergal-5","C0-Tergal-5",76,5,"4 سنوات","مريول tergal   لقسم الروضات مع تطريز إضافي أحرف وأرقام والشعار -قياس : 5",100000,0.4,null,null,162,76]
["N01","C0-Tergal","C0-Tergal-6","C0-Tergal-6",39,6,"5 سنوات","مريول tergal   لقسم الروضات مع تطريز إضافي أحرف وأرقام والشعار -قياس : 6",100000,0.5,null,null,25,39]
["N01","C0-Tergal","C0-Tergal-7","C0-Tergal-7",8,7,"6 سنوات","مريول tergal   لقسم الروضات مع تطريز إضافي أحرف وأرقام والشعار -قياس : 7",100000,1,null,null,20,8]
["N02","C12-M-LS","C12-M-LS-6","C12-M-LS-6",127,6,"6-7 سنوات","قميص كم طويل –بنين (لون أزرق )للقسم الإبتدائي-قياس : 6",145000,2,null,null,150,127]
["N02","C12-M-LS","C12-M-LS-8","C12-M-LS-8",257,8,"7-8 سنوات","قميص كم طويل –بنين (لون أزرق )للقسم الإبتدائي-قياس : 8",145000,3,null,null,300,260]
["N02","C12-M-LS","C12-M-LS-10","C12-M-LS-10",261,10,"8-9 سنوات","قميص كم طويل –بنين (لون أزرق )للقسم الإبتدائي-قياس : 10",145000,1,null,null,300,261]
["N02","C12-M-LS","C12-M-LS-12","C12-M-LS-12",210,12,"9-10 سنوات ","قميص كم طويل –بنين (لون أزرق )للقسم الإبتدائي-قياس : 12",145000,1.2,null,null,250,210]
["N02","C12-M-LS","C12-M-LS-14","C12-M-LS-14",170,14,"10-12 سنة ","قميص كم طويل –بنين (لون أزرق )للقسم الإبتدائي-قياس : 14",145000,1.1000000000000001,null,null,200,170]
["N03","C12-F-LS","C12-F-LS-6","C12-F-LS-6",122,6,"6-7 سنوات","قميص كم طويل-بنات(لون زهري) للقسم الإبتدائي-قياس : 6",145000,1.5,null,null,150,122]
["N03","C12-F-LS","C12-F-LS-8","C12-F-LS-8",245,8,"7-8 سنوات","قميص كم طويل-بنات(لون زهري) للقسم الإبتدائي-قياس : 8",145000,1.6,null,null,300,245]
["N03","C12-F-LS","C12-F-LS-10","C12-F-LS-10",256,10,"8-9 سنوات","قميص كم طويل-بنات(لون زهري) للقسم الإبتدائي-قياس : 10",145000,3,null,null,300,257]
["N03","C12-F-LS","C12-F-LS-12","C12-F-LS-12",217,12,"9-10 سنوات ","قميص كم طويل-بنات(لون زهري) للقسم الإبتدائي-قياس : 12",145000,1,null,null,250,218]
["N03","C12-F-LS","C12-F-LS-14","C12-F-LS-14",169,14,"10-12 سنة ","قميص كم طويل-بنات(لون زهري) للقسم الإبتدائي-قياس : 14",145000,1.2,null,null,200,171]
["N04","C34-M-LS","C34-M-LS-14","C34-M-LS-14",189,14,null,"قميص كم طويل-بنين(لون رمادي)للقسم المتوسط والثانوي  -قياس : 14",145000,1.1000000000000001,null,null,200,189]
["N04","C34-M-LS","C34-M-LS-16","C34-M-LS-16",177,16,null,"قميص كم طويل-بنين(لون رمادي)للقسم المتوسط والثانوي  -قياس : 16",145000,1.5,null,null,200,177]
["N04","C34-M-LS","C34-M-LS-S","C34-M-LS-S",136,"S",null,"قميص كم طويل-بنين(لون رمادي)للقسم المتوسط والثانوي  -قياس : S",145000,1.6,null,null,150,136]
["N04","C34-M-LS","C34-M-LS-M","C34-M-LS-M",145,"M",null,"قميص كم طويل-بنين(لون رمادي)للقسم المتوسط والثانوي  -قياس : M",145000,3,null,null,150,145]
["N04","C34-M-LS","C34-M-LS-L","C34-M-LS-L",93,"L",null,"قميص كم طويل-بنين(لون رمادي)للقسم المتوسط والثانوي  -قياس : L",145000,1,null,null,100,93]
["N04","C34-M-LS","C34-M-LS-XL","C34-M-LS-XL",48,"XL",null,"قميص كم طويل-بنين(لون رمادي)للقسم المتوسط والثانوي  -قياس : XL",145000,1.2,null,null,50,50]
["N05","C34-F-LS","C34-F-LS-14","C34-F-LS-14",191,14,null,"قميص كم طويل-بنات (لون موف)للقسم المتوسط والثانوي-قياس : 14",145000,1.1000000000000001,null,null,200,191]
["N05","C34-F-LS","C34-F-LS-16","C34-F-LS-16",188,16,null,"قميص كم طويل-بنات (لون موف)للقسم المتوسط والثانوي-قياس : 16",145000,1.5,null,null,200,188]
["N05","C34-F-LS","C34-F-LS-S","C34-F-LS-S",134,"S",null,"قميص كم طويل-بنات (لون موف)للقسم المتوسط والثانوي-قياس : S",145000,1.6,null,null,150,134]
["N05","C34-F-LS","C34-F-LS-M","C34-F-LS-M",130,"M",null,"قميص كم طويل-بنات (لون موف)للقسم المتوسط والثانوي-قياس : M",145000,3,null,null,150,130]
["N05","C34-F-LS","C34-F-LS-L","C34-F-LS-L",70,"L",null,"قميص كم طويل-بنات (لون موف)للقسم المتوسط والثانوي-قياس : L",145000,1,null,null,100,70]
["N05","C34-F-LS","C34-F-LS-XL","C34-F-LS-XL",37,"XL",null,"قميص كم طويل-بنات (لون موف)للقسم المتوسط والثانوي-قياس : XL",145000,1.2,null,null,50,37]
["N06","C12-M-SS","C12-M-SS-6","C12-M-SS-6",144,6,"6-7سنوات","قميص كم قصير-بنين(لون أزرق)للقسم الإبتدائي -قياس : 6",125000,1.1000000000000001,null,null,150,144]
["N06","C12-M-SS","C12-M-SS-8","C12-M-SS-8",289,8,"7-8سنوات","قميص كم قصير-بنين(لون أزرق)للقسم الإبتدائي -قياس : 8",125000,1.5,null,null,300,289]
["N06","C12-M-SS","C12-M-SS-10","C12-M-SS-10",290,10,"8-9سنوات","قميص كم قصير-بنين(لون أزرق)للقسم الإبتدائي -قياس : 10",125000,1.6,null,null,300,290]
["N06","C12-M-SS","C12-M-SS-12","C12-M-SS-12",236,12,"9-10سنوات","قميص كم قصير-بنين(لون أزرق)للقسم الإبتدائي -قياس : 12",125000,3,null,null,250,236]
["N06","C12-M-SS","C12-M-SS-14","C12-M-SS-14",188,14,"10-12سنة ","قميص كم قصير-بنين(لون أزرق)للقسم الإبتدائي -قياس : 14",125000,1,null,null,200,188]
["N07","C12-F-SS","C12-F-SS-6","C12-F-SS-6",146,6,"6-7 سنوات","قميص كم قصير –بنات (لون زهري )للقسم الإبتدائي-قياس : 6",125000,1.2,null,null,150,146]
["N07","C12-F-SS","C12-F-SS-8","C12-F-SS-8",288,8,"7-8 سنوات","قميص كم قصير –بنات (لون زهري )للقسم الإبتدائي-قياس : 8",125000,1.1000000000000001,null,null,300,288]
["N07","C12-F-SS","C12-F-SS-10","C12-F-SS-10",291,10,"8-9 سنوات","قميص كم قصير –بنات (لون زهري )للقسم الإبتدائي-قياس : 10",125000,1.5,null,null,300,291]
["N07","C12-F-SS","C12-F-SS-12","C12-F-SS-12",243,12,"9-10 سنوات ","قميص كم قصير –بنات (لون زهري )للقسم الإبتدائي-قياس : 12",125000,1.6,null,null,250,243]
["N07","C12-F-SS","C12-F-SS-14","C12-F-SS-14",189,14,"10-12 سنة ","قميص كم قصير –بنات (لون زهري )للقسم الإبتدائي-قياس : 14",125000,3,null,null,200,189]
["N08","C34-M-SS","C34-M-SS-14","C34-M-SS-14",194,14,null,"قميص كم قصير-بنين(لون رمادي) للقسم المتوسط والثانوي-قياس : 14",125000,1,null,null,200,194]
["N08","C34-M-SS","C34-M-SS-16","C34-M-SS-16",190,16,null,"قميص كم قصير-بنين(لون رمادي) للقسم المتوسط والثانوي-قياس : 16",125000,1.2,null,null,200,190]
["N08","C34-M-SS","C34-M-SS-S","C34-M-SS-S",141,"S",null,"قميص كم قصير-بنين(لون رمادي) للقسم المتوسط والثانوي-قياس : S",125000,1.1000000000000001,null,null,150,141]
["N08","C34-M-SS","C34-M-SS-M","C34-M-SS-M",141,"M",null,"قميص كم قصير-بنين(لون رمادي) للقسم المتوسط والثانوي-قياس : M",125000,1.5,null,null,150,144]
["N08","C34-M-SS","C34-M-SS-L","C34-M-SS-L",96,"L",null,"قميص كم قصير-بنين(لون رمادي) للقسم المتوسط والثانوي-قياس : L",125000,1.6,null,null,100,96]
["N08","C34-M-SS","C34-M-SS-XL","C34-M-SS-XL",50,"XL",null,"قميص كم قصير-بنين(لون رمادي) للقسم المتوسط والثانوي-قياس : XL",125000,3,null,null,50,50]
["N09","C34-F-SS","C34-F-SS-14","C34-F-SS-14",195,14,null,"قميص كم قصير-بنات (لون موف)للقسم المتوسط والثانوي  -قياس : 14",125000,1,null,null,200,195]
["N09","C34-F-SS","C34-F-SS-16","C34-F-SS-16",199,16,null,"قميص كم قصير-بنات (لون موف)للقسم المتوسط والثانوي  -قياس : 16",125000,1.2,null,null,200,199]
["N09","C34-F-SS","C34-F-SS-S","C34-F-SS-S",145,"S",null,"قميص كم قصير-بنات (لون موف)للقسم المتوسط والثانوي  -قياس : S",125000,1.1000000000000001,null,null,150,145]
["N09","C34-F-SS","C34-F-SS-M","C34-F-SS-M",142,"M",null,"قميص كم قصير-بنات (لون موف)للقسم المتوسط والثانوي  -قياس : M",125000,1.5,null,null,150,142]
["N09","C34-F-SS","C34-F-SS-L","C34-F-SS-L",96,"L",null,"قميص كم قصير-بنات (لون موف)للقسم المتوسط والثانوي  -قياس : L",125000,1.6,null,null,100,96]
["N09","C34-F-SS","C34-F-SS-XL","C34-F-SS-XL",47,"XL",null,"قميص كم قصير-بنات (لون موف)للقسم المتوسط والثانوي  -قياس : XL",125000,3,null,null,50,47]
["N11","CA-Gilet","CA-Gilet-6","CA-Gilet-6",90,6,null,"جيلية صوف نوعية ممتازة مع تطريز –خيط تركي (50%صوف-50%أكريليك)-قياس : 6",145000,1,null,null,100,90]
["N11","CA-Gilet","CA-Gilet-8","CA-Gilet-8",282,8,null,"جيلية صوف نوعية ممتازة مع تطريز –خيط تركي (50%صوف-50%أكريليك)-قياس : 8",145000,1.2,null,null,300,282]
["N11","CA-Gilet","CA-Gilet-10","CA-Gilet-10",288,10,null,"جيلية صوف نوعية ممتازة مع تطريز –خيط تركي (50%صوف-50%أكريليك)-قياس : 10",145000,1.1000000000000001,null,null,300,288]
["N11","CA-Gilet","CA-Gilet-12","CA-Gilet-12",287,12,null,"جيلية صوف نوعية ممتازة مع تطريز –خيط تركي (50%صوف-50%أكريليك)-قياس : 12",145000,1.5,null,null,300,287]
["N11","CA-Gilet","CA-Gilet-14","CA-Gilet-14",240,14,null,"جيلية صوف نوعية ممتازة مع تطريز –خيط تركي (50%صوف-50%أكريليك)-قياس : 14",145000,1.6,null,null,250,240]
["N11","CA-Gilet","CA-Gilet-16","CA-Gilet-16",244,16,null,"جيلية صوف نوعية ممتازة مع تطريز –خيط تركي (50%صوف-50%أكريليك)-قياس : 16",145000,3,null,null,250,244]
["N11","CA-Gilet","CA-Gilet-S","CA-Gilet-S",193,"S",null,"جيلية صوف نوعية ممتازة مع تطريز –خيط تركي (50%صوف-50%أكريليك)-قياس : S",145000,1,null,null,200,193]
["N11","CA-Gilet","CA-Gilet-M","CA-Gilet-M",156,"M",null,"جيلية صوف نوعية ممتازة مع تطريز –خيط تركي (50%صوف-50%أكريليك)-قياس : M",145000,1.2,null,null,150,156]
["N11","CA-Gilet","CA-Gilet-L","CA-Gilet-L",95,"L",null,"جيلية صوف نوعية ممتازة مع تطريز –خيط تركي (50%صوف-50%أكريليك)-قياس : L",145000,1.1000000000000001,null,null,100,100]
["N11","CA-Gilet","CA-Gilet-XL","CA-Gilet-XL",48,"XL",null,"جيلية صوف نوعية ممتازة مع تطريز –خيط تركي (50%صوف-50%أكريليك)-قياس : XL",145000,1.5,null,null,50,48]
["N12","C34-F-LS-Hijab","C34-F-LS-Hijab-14","C34-F-LS-Hijab-14",31,14,null,"قميص كم طويل للمحجبات-بنات(لون موف)للقسم المتوسط والثانوي -قياس : 14",145000,1.6,null,null,35,31]
["N12","C34-F-LS-Hijab","C34-F-LS-Hijab-16","C34-F-LS-Hijab-16",32,16,null,"قميص كم طويل للمحجبات-بنات(لون موف)للقسم المتوسط والثانوي -قياس : 16",145000,3,null,null,35,32]
["N12","C34-F-LS-Hijab","C34-F-LS-Hijab-S","C34-F-LS-Hijab-S",31,"S",null,"قميص كم طويل للمحجبات-بنات(لون موف)للقسم المتوسط والثانوي -قياس : S",145000,1,null,null,35,31]
["N12","C34-F-LS-Hijab","C34-F-LS-Hijab-M","C34-F-LS-Hijab-M",18,"M",null,"قميص كم طويل للمحجبات-بنات(لون موف)للقسم المتوسط والثانوي -قياس : M",145000,1.2,null,null,25,18]
["N12","C34-F-LS-Hijab","C34-F-LS-Hijab-L","C34-F-LS-Hijab-L",16,"L",null,"قميص كم طويل للمحجبات-بنات(لون موف)للقسم المتوسط والثانوي -قياس : L",145000,1.1000000000000001,null,null,20,16]
["N12","C34-F-LS-Hijab","C34-F-LS-Hijab-XL","C34-F-LS-Hijab-XL",6,"XL",null,"قميص كم طويل للمحجبات-بنات(لون موف)للقسم المتوسط والثانوي -قياس : XL",145000,1.5,null,null,10,6]
["O01","CA-BL-SS-Blue","CA-BL-SS-Blue-4","CA-BL-SS-Blue-4",45,4,null,"بلوزة قطنية زرقاء كم قصير - قياس : 4",80000,1.6,null,null,47,47]
["O01","CA-BL-SS-Blue","CA-BL-SS-Blue-6","CA-BL-SS-Blue-6",133,6,null,"بلوزة قطنية زرقاء كم قصير - قياس : 6",80000,3,null,null,136,133]
["O01","CA-BL-SS-Blue","CA-BL-SS-Blue-8","CA-BL-SS-Blue-8",106,8,null,"بلوزة قطنية زرقاء كم قصير - قياس : 8",80000,1,null,null,122,106]
["O01","CA-BL-SS-Blue","CA-BL-SS-Blue-10","CA-BL-SS-Blue-10",122,10,null,"بلوزة قطنية زرقاء كم قصير - قياس : 10",80000,1.2,null,null,154,122]
["O01","CA-BL-SS-Blue","CA-BL-SS-Blue-12","CA-BL-SS-Blue-12",129,12,null,"بلوزة قطنية زرقاء كم قصير - قياس : 12",80000,1.1000000000000001,null,null,150,129]
["O01","CA-BL-SS-Blue","CA-BL-SS-Blue-14","CA-BL-SS-Blue-14",176,14,null,"بلوزة قطنية زرقاء كم قصير - قياس : 14",80000,1.5,null,null,194,176]
["O01","CA-BL-SS-Blue","CA-BL-SS-Blue-16","CA-BL-SS-Blue-16",152,16,null,"بلوزة قطنية زرقاء كم قصير - قياس : 16",80000,1.6,null,null,152,152]
["O01","CA-BL-SS-Blue","CA-BL-SS-Blue-18","CA-BL-SS-Blue-18",31,18,null,"بلوزة قطنية زرقاء كم قصير - قياس : 18",80000,3,null,null,41,31]
["O01","CA-BL-SS-Blue","CA-BL-SS-Blue-S","CA-BL-SS-Blue-S",69,"S",null,"بلوزة قطنية زرقاء كم قصير - قياس : S",80000,1,null,null,77,69]
["O01","CA-BL-SS-Blue","CA-BL-SS-Blue-M","CA-BL-SS-Blue-M",144,"M",null,"بلوزة قطنية زرقاء كم قصير - قياس : M",80000,1.2,null,null,144,144]
["O01","CA-BL-SS-Blue","CA-BL-SS-Blue-L","CA-BL-SS-Blue-L",171,"L",null,"بلوزة قطنية زرقاء كم قصير - قياس : L",80000,1.1000000000000001,null,null,174,171]
["O01","CA-BL-SS-Blue","CA-BL-SS-Blue-XL","CA-BL-SS-Blue-XL",81,"XL",null,"بلوزة قطنية زرقاء كم قصير - قياس : XL",80000,1.5,null,null,81,81]
["O01","CA-BL-SS-Blue","CA-BL-SS-Blue-XXL","CA-BL-SS-Blue-XXL",49,"XXL",null,"بلوزة قطنية زرقاء كم قصير - قياس : XXL",80000,1.6,null,null,49,49]
["O02","CA-BL-LS-Blue","CA-BL-LS-Blue-4","CA-BL-LS-Blue-4",71,4,null,"بلوزة قطنية زرقاء كم طويل- قياس : 4",110000,3,null,null,73,71]
["O02","CA-BL-LS-Blue","CA-BL-LS-Blue-6","CA-BL-LS-Blue-6",26,6,null,"بلوزة قطنية زرقاء كم طويل- قياس : 6",110000,1,null,null,32,26]
["O02","CA-BL-LS-Blue","CA-BL-LS-Blue-8","CA-BL-LS-Blue-8",67,8,null,"بلوزة قطنية زرقاء كم طويل- قياس : 8",110000,1.2,null,null,104,67]
["O02","CA-BL-LS-Blue","CA-BL-LS-Blue-10","CA-BL-LS-Blue-10",186,10,null,"بلوزة قطنية زرقاء كم طويل- قياس : 10",110000,1.1000000000000001,null,null,220,186]
["O02","CA-BL-LS-Blue","CA-BL-LS-Blue-12","CA-BL-LS-Blue-12",178,12,null,"بلوزة قطنية زرقاء كم طويل- قياس : 12",110000,1.5,null,null,218,178]
["O02","CA-BL-LS-Blue","CA-BL-LS-Blue-14","CA-BL-LS-Blue-14",80,14,null,"بلوزة قطنية زرقاء كم طويل- قياس : 14",110000,1.6,null,null,104,80]
["O02","CA-BL-LS-Blue","CA-BL-LS-Blue-16","CA-BL-LS-Blue-16",151,16,null,"بلوزة قطنية زرقاء كم طويل- قياس : 16",110000,2,null,null,181,151]
["O02","CA-BL-LS-Blue","CA-BL-LS-Blue-18","CA-BL-LS-Blue-18",18,18,null,"بلوزة قطنية زرقاء كم طويل- قياس : 18",110000,1.5,null,null,33,18]
["O02","CA-BL-LS-Blue","CA-BL-LS-Blue-S","CA-BL-LS-Blue-S",35,"S",null,"بلوزة قطنية زرقاء كم طويل- قياس : S",110000,1.6,null,null,50,35]
["O02","CA-BL-LS-Blue","CA-BL-LS-Blue-M","CA-BL-LS-Blue-M",63,"M",null,"بلوزة قطنية زرقاء كم طويل- قياس : M",110000,3,null,null,69,63]
["O02","CA-BL-LS-Blue","CA-BL-LS-Blue-L","CA-BL-LS-Blue-L",82,"L",null,"بلوزة قطنية زرقاء كم طويل- قياس : L",110000,1,null,null,86,82]
["O02","CA-BL-LS-Blue","CA-BL-LS-Blue-XL","CA-BL-LS-Blue-XL",26,"XL",null,"بلوزة قطنية زرقاء كم طويل- قياس : XL",110000,1.2,null,null,29,26]
["O02","CA-BL-LS-Blue","CA-BL-LS-Blue-XXL","CA-BL-LS-Blue-XXL",38,"XXL",null,"بلوزة قطنية زرقاء كم طويل- قياس : XXL",110000,1.1000000000000001,null,null,38,38]
["O03","CA-BL-LS-Turq","CA-BL-LS-Turq-10","CA-BL-LS-Turq-10",24,10,null,"بلوزة قطنية تركواز كم  طويلPOLO - قياس : 10",95000,1.5,null,null,24,24]
["O03","CA-BL-LS-Turq","CA-BL-LS-Turq-12","CA-BL-LS-Turq-12",96,12,null,"بلوزة قطنية تركواز كم  طويلPOLO - قياس : 12",95000,1.6,null,null,96,96]
["O03","CA-BL-LS-Turq","CA-BL-LS-Turq-14","CA-BL-LS-Turq-14",73,14,null,"بلوزة قطنية تركواز كم  طويلPOLO - قياس : 14",95000,3,null,null,74,73]
["O03","CA-BL-LS-Turq","CA-BL-LS-Turq-16","CA-BL-LS-Turq-16",18,16,null,"بلوزة قطنية تركواز كم  طويلPOLO - قياس : 16",95000,1,null,null,19,18]
["O03","CA-BL-LS-Turq","CA-BL-LS-Turq-18","CA-BL-LS-Turq-18",25,18,null,"بلوزة قطنية تركواز كم  طويلPOLO - قياس : 18",95000,1.2,null,null,27,25]
["O03","CA-BL-LS-Turq","CA-BL-LS-Turq-S","CA-BL-LS-Turq-S",81,"S",null,"بلوزة قطنية تركواز كم  طويلPOLO - قياس : S",95000,1.1000000000000001,null,null,82,81]
["O03","CA-BL-LS-Turq","CA-BL-LS-Turq-M","CA-BL-LS-Turq-M",2,"M",null,"بلوزة قطنية تركواز كم  طويلPOLO - قياس : M",95000,1.5,null,null,2,2]
["O03","CA-BL-LS-Turq","CA-BL-LS-Turq-L","CA-BL-LS-Turq-L",43,"L",null,"بلوزة قطنية تركواز كم  طويلPOLO - قياس : L",95000,1.6,null,null,43,43]
["O03","CA-BL-LS-Turq","CA-BL-LS-Turq-XL","CA-BL-LS-Turq-XL",55,"XL",null,"بلوزة قطنية تركواز كم  طويلPOLO - قياس : XL",95000,3,null,null,55,55]
["O03","CA-BL-LS-Turq","CA-BL-LS-Turq-XXL","CA-BL-LS-Turq-XXL",35,"XXL",null,"بلوزة قطنية تركواز كم  طويلPOLO - قياس : XXL",95000,1,null,null,35,35]
["O04","CA-BL-SS-Turq","CA-BL-SS-Turq-10","CA-BL-SS-Turq-10",41,10,null,"بلوزة قطنية تركواز كم قصير POLO - قياس : 10",80000,1.2,null,null,41,41]
["O04","CA-BL-SS-Turq","CA-BL-SS-Turq-12","CA-BL-SS-Turq-12",139,12,null,"بلوزة قطنية تركواز كم قصير POLO - قياس : 12",80000,1.1000000000000001,null,null,139,139]
["O04","CA-BL-SS-Turq","CA-BL-SS-Turq-14","CA-BL-SS-Turq-14",22,14,null,"بلوزة قطنية تركواز كم قصير POLO - قياس : 14",80000,1.5,null,null,23,22]
["O04","CA-BL-SS-Turq","CA-BL-SS-Turq-16","CA-BL-SS-Turq-16",0,16,null,"بلوزة قطنية تركواز كم قصير POLO - قياس : 16",80000,1.6,null,null,0,0]
["O04","CA-BL-SS-Turq","CA-BL-SS-Turq-18","CA-BL-SS-Turq-18",7,18,null,"بلوزة قطنية تركواز كم قصير POLO - قياس : 18",80000,2,null,null,7,7]
["O04","CA-BL-SS-Turq","CA-BL-SS-Turq-S","CA-BL-SS-Turq-S",6,"S",null,"بلوزة قطنية تركواز كم قصير POLO - قياس : S",80000,1.5,null,null,6,6]
["O04","CA-BL-SS-Turq","CA-BL-SS-Turq-M","CA-BL-SS-Turq-M",29,"M",null,"بلوزة قطنية تركواز كم قصير POLO - قياس : M",80000,1.6,null,null,29,29]
["O04","CA-BL-SS-Turq","CA-BL-SS-Turq-L","CA-BL-SS-Turq-L",89,"L",null,"بلوزة قطنية تركواز كم قصير POLO - قياس : L",80000,3,null,null,89,89]
["O04","CA-BL-SS-Turq","CA-BL-SS-Turq-XL","CA-BL-SS-Turq-XL",27,"XL",null,"بلوزة قطنية تركواز كم قصير POLO - قياس : XL",80000,1,null,null,27,27]
["O04","CA-BL-SS-Turq","CA-BL-SS-Turq-XXL","CA-BL-SS-Turq-XXL",2,"XXL",null,"بلوزة قطنية تركواز كم قصير POLO - قياس : XXL",80000,1.2,null,null,2,2]
["O05","CA-BL-SS-Car","CA-BL-SS-Car-4","CA-BL-SS-Car-4",100,4,null,"قميص كارو كم قصير- قياس : 4",50000,1.1000000000000001,null,null,100,100]
["O05","CA-BL-SS-Car","CA-BL-SS-Car-14","CA-BL-SS-Car-14",12,14,null,"قميص كارو كم قصير- قياس : 14",50000,1.5,null,null,12,12]
["O05","CA-BL-SS-Car","CA-BL-SS-Car-16","CA-BL-SS-Car-16",69,16,null,"قميص كارو كم قصير- قياس : 16",50000,1.6,null,null,69,69]
["O05","CA-BL-SS-Car","CA-BL-SS-Car-S","CA-BL-SS-Car-S",60,"S",null,"قميص كارو كم قصير- قياس : S",50000,3,null,null,61,60]
["O06","CA-BL-LS-Car","CA-BL-LS-Car-4","CA-BL-LS-Car-4",44,4,null,"قميص كارو كم طويل- قياس : 4",50000,1,null,null,44,44]
["O06","CA-BL-LS-Car","CA-BL-LS-Car-14","CA-BL-LS-Car-14",36,14,null,"قميص كارو كم طويل- قياس : 14",50000,1.2,null,null,36,36]
["O06","CA-BL-LS-Car","CA-BL-LS-Car-16","CA-BL-LS-Car-16",214,16,null,"قميص كارو كم طويل- قياس : 16",50000,1.1000000000000001,null,null,215,214]
["O06","CA-BL-LS-Car","CA-BL-LS-Car-S","CA-BL-LS-Car-S",86,"S",null,"قميص كارو كم طويل- قياس : S",50000,1.5,null,null,86,86]
["O07","CA-Chazwel","CA-Chazwel-4","CA-Chazwel-4",49,4,null,"شازوبل بناتي افرادي- قياس : 4",80000,1.6,null,null,49,49]
["O07","CA-Chazwel","CA-Chazwel-6","CA-Chazwel-6",120,6,null,"شازوبل بناتي افرادي- قياس : 6",80000,3,null,null,120,120]
["O07","CA-Chazwel","CA-Chazwel-XL","CA-Chazwel-XL",0,"XL",null,"شازوبل بناتي افرادي- قياس : XL",80000,1,null,null,2,0]
["O08","CA-F-LS-White","CA-F-LS-White-4","CA-F-LS-White-4",53,4,null,"قميص ابيض بناتي- قياس : 4",50000,1.2,null,null,53,53]
["O08","CA-F-LS-White","CA-F-LS-White-6","CA-F-LS-White-6",56,6,null,"قميص ابيض بناتي- قياس : 6",50000,1.1000000000000001,null,null,56,56]
["O08","CA-F-LS-White","CA-F-LS-White-7","CA-F-LS-White-7",2,7,null,"قميص ابيض بناتي- قياس : 7",50000,1.5,null,null,2,2]
["O08","CA-F-LS-White","CA-F-LS-White-12","CA-F-LS-White-12",1,12,null,"قميص ابيض بناتي- قياس : 12",50000,1.6,null,null,1,1]
["O08","CA-F-LS-White","CA-F-LS-White-14","CA-F-LS-White-14",47,14,null,"قميص ابيض بناتي- قياس : 14",50000,2,null,null,47,47]
["O08","CA-F-LS-White","CA-F-LS-White-S","CA-F-LS-White-S",22,"S",null,"قميص ابيض بناتي- قياس : S",50000,1.5,null,null,22,22]
["O08","CA-F-LS-White","CA-F-LS-White-M","CA-F-LS-White-M",25,"M",null,"قميص ابيض بناتي- قياس : M",50000,1.6,null,null,25,25]
["O08","CA-F-LS-White","CA-F-LS-White-L","CA-F-LS-White-L",23,"L",null,"قميص ابيض بناتي- قياس : L",50000,3,null,null,23,23]
["O08","CA-F-LS-White","CA-F-LS-White-XL","CA-F-LS-White-XL",12,"XL",null,"قميص ابيض بناتي- قياس : XL",50000,1,null,null,12,12]
["O09","CA-SpSuit-Sum","CA-SpSuit-Sum-3XS","CA-SpSuit-Sum-3XS",97,"3XS",null,"طقم رياضة صيفي. TECTEL- قياس : 3XS",190000,1.2,null,null,99,97]
["O09","CA-SpSuit-Sum","CA-SpSuit-Sum-2XS","CA-SpSuit-Sum-2XS",115,"2XS",null,"طقم رياضة صيفي. TECTEL- قياس : 2XS",190000,1.1000000000000001,null,null,120,115]
["O09","CA-SpSuit-Sum","CA-SpSuit-Sum-XS","CA-SpSuit-Sum-XS",129,"XS",null,"طقم رياضة صيفي. TECTEL- قياس : XS",190000,1.5,null,null,133,129]
["O09","CA-SpSuit-Sum","CA-SpSuit-Sum-S","CA-SpSuit-Sum-S",127,"S",null,"طقم رياضة صيفي. TECTEL- قياس : S",190000,1.6,null,null,131,127]
["O09","CA-SpSuit-Sum","CA-SpSuit-Sum-M","CA-SpSuit-Sum-M",124,"M",null,"طقم رياضة صيفي. TECTEL- قياس : M",190000,3,null,null,127,124]
["O09","CA-SpSuit-Sum","CA-SpSuit-Sum-L","CA-SpSuit-Sum-L",57,"L",null,"طقم رياضة صيفي. TECTEL- قياس : L",190000,1,null,null,59,57]
["O09","CA-SpSuit-Sum","CA-SpSuit-Sum-XL","CA-SpSuit-Sum-XL",116,"XL",null,"طقم رياضة صيفي. TECTEL- قياس : XL",190000,1.2,null,null,117,116]
["O09","CA-SpSuit-Sum","CA-SpSuit-Sum-XXL","CA-SpSuit-Sum-XXL",83,"XXL",null,"طقم رياضة صيفي. TECTEL- قياس : XXL",190000,1.1000000000000001,null,null,83,83]
["O09","CA-SpSuit-Sum","CA-SpSuit-Sum-3XL","CA-SpSuit-Sum-3XL",41,"3XL",null,"طقم رياضة صيفي. TECTEL- قياس : 3XL",190000,1.5,null,null,41,41]
["O10","CA-SpSuit-Win","CA-SpSuit-Win-4","CA-SpSuit-Win-4",36,4,null,"طقم رياضة شتوي- قياس : 4",295000,1.6,null,null,39,36]
["O10","CA-SpSuit-Win","CA-SpSuit-Win-6","CA-SpSuit-Win-6",188,6,null,"طقم رياضة شتوي- قياس : 6",295000,3,null,null,195,188]
["O10","CA-SpSuit-Win","CA-SpSuit-Win-8","CA-SpSuit-Win-8",102,8,null,"طقم رياضة شتوي- قياس : 8",295000,1,null,null,105,102]
["O10","CA-SpSuit-Win","CA-SpSuit-Win-10","CA-SpSuit-Win-10",89,10,null,"طقم رياضة شتوي- قياس : 10",295000,1.2,null,null,100,89]
["O10","CA-SpSuit-Win","CA-SpSuit-Win-12","CA-SpSuit-Win-12",219,12,null,"طقم رياضة شتوي- قياس : 12",295000,1.1000000000000001,null,null,226,219]
["O10","CA-SpSuit-Win","CA-SpSuit-Win-14","CA-SpSuit-Win-14",134,14,null,"طقم رياضة شتوي- قياس : 14",295000,1.5,null,null,139,134]
["O10","CA-SpSuit-Win","CA-SpSuit-Win-16","CA-SpSuit-Win-16",110,16,null,"طقم رياضة شتوي- قياس : 16",295000,1.6,null,null,112,110]
["O10","CA-SpSuit-Win","CA-SpSuit-Win-S","CA-SpSuit-Win-S",97,"S",null,"طقم رياضة شتوي- قياس : S",295000,2,null,null,99,97]
["O10","CA-SpSuit-Win","CA-SpSuit-Win-M","CA-SpSuit-Win-M",55,"M",null,"طقم رياضة شتوي- قياس : M",295000,1.5,null,null,55,55]
["O10","CA-SpSuit-Win","CA-SpSuit-Win-L","CA-SpSuit-Win-L",152,"L",null,"طقم رياضة شتوي- قياس : L",295000,1.6,null,"Splitted",153,152]
["O10","CA-SpSuit-Win","CA-SpSuit-Win-XL","CA-SpSuit-Win-XL",99,"XL",null,"طقم رياضة شتوي- قياس : XL",295000,3,null,null,100,99]
["O10","CA-SpSuit-Win","CA-SpSuit-Win-XXL","CA-SpSuit-Win-XXL",42,"XXL",null,"طقم رياضة شتوي- قياس : XXL",295000,1,null,null,42,42]
["O11","CA-SpShort","CA-SpShort-4","CA-SpShort-4",25,4,null,"شورت رياضة قطن- قياس : 4",55000,1.2,null,null,26,25]
["O11","CA-SpShort","CA-SpShort-6","CA-SpShort-6",60,6,null,"شورت رياضة قطن- قياس : 6",55000,1.1000000000000001,null,null,65,60]
["O11","CA-SpShort","CA-SpShort-8","CA-SpShort-8",67,8,null,"شورت رياضة قطن- قياس : 8",55000,1.5,null,null,78,67]
["O11","CA-SpShort","CA-SpShort-10","CA-SpShort-10",57,10,null,"شورت رياضة قطن- قياس : 10",55000,1.6,null,null,74,57]
["O11","CA-SpShort","CA-SpShort-12","CA-SpShort-12",67,12,null,"شورت رياضة قطن- قياس : 12",55000,3,null,null,77,67]
["O11","CA-SpShort","CA-SpShort-14","CA-SpShort-14",122,14,null,"شورت رياضة قطن- قياس : 14",55000,1,null,null,135,122]
["O11","CA-SpShort","CA-SpShort-S","CA-SpShort-S",7,"S",null,"شورت رياضة قطن- قياس : S",55000,1.2,null,null,10,7]
["O12","CA-SPPant","CA-SPPant-4","CA-SPPant-4",56,4,null,"بنطلون رياضة افرادي- قياس : 4",160000,1.1000000000000001,null,null,57,56]
["O12","CA-SPPant","CA-SPPant-6","CA-SPPant-6",89,6,null,"بنطلون رياضة افرادي- قياس : 6",160000,1.5,null,null,92,89]
["O12","CA-SPPant","CA-SPPant-8","CA-SPPant-8",42,8,null,"بنطلون رياضة افرادي- قياس : 8",160000,1.6,null,null,50,42]
["O12","CA-SPPant","CA-SPPant-10","CA-SPPant-10",42,10,null,"بنطلون رياضة افرادي- قياس : 10",160000,3,null,null,45,42]
["O12","CA-SPPant","CA-SPPant-12","CA-SPPant-12",21,12,null,"بنطلون رياضة افرادي- قياس : 12",160000,1,null,null,25,21]
["O12","CA-SPPant","CA-SPPant-14","CA-SPPant-14",21,14,null,"بنطلون رياضة افرادي- قياس : 14",160000,1.2,null,null,24,21]
["O12","CA-SPPant","CA-SPPant-16","CA-SPPant-16",48,16,null,"بنطلون رياضة افرادي- قياس : 16",160000,1.1000000000000001,null,null,53,48]
["O12","CA-SPPant","CA-SPPant-S","CA-SPPant-S",84,"S",null,"بنطلون رياضة افرادي- قياس : S",160000,1.5,null,null,87,84]
["O12","CA-SPPant","CA-SPPant-M","CA-SPPant-M",1,"M",null,"بنطلون رياضة افرادي- قياس : M",160000,1.6,null,null,0,1]
["O12","CA-SPPant","CA-SPPant-L","CA-SPPant-L",0,"L",null,"بنطلون رياضة افرادي- قياس : L",160000,2,null,null,1,0]
["O12","CA-SPPant","CA-SPPant-XL","CA-SPPant-XL",51,"XL",null,"بنطلون رياضة افرادي- قياس : XL",160000,1.5,null,null,51,51]
["O12","CA-SPPant","CA-SPPant-XXL","CA-SPPant-XXL",27,"XXL",null,"بنطلون رياضة افرادي- قياس : XXL",160000,1.6,null,null,27,27]
["O13","C0-uniform","C0-uniform-3","C0-uniform-3",56,3,null,"مريول روضات جديد- قياس : 3",50000,3,null,null,56,56]
["O13","C0-uniform","C0-uniform-4","C0-uniform-4",255,4,null,"مريول روضات جديد- قياس : 4",50000,1,null,null,255,255]
["O13","C0-uniform","C0-uniform-5","C0-uniform-5",162,5,null,"مريول روضات جديد- قياس : 5",50000,1.2,null,null,162,162]
["O13","C0-uniform","C0-uniform-6","C0-uniform-6",25,6,null,"مريول روضات جديد- قياس : 6",50000,1.1000000000000001,null,null,25,25]
["O13","C0-uniform","C0-uniform-7","C0-uniform-7",20,7,null,"مريول روضات جديد- قياس : 7",50000,1.5,null,null,20,20]
["O13","C0-uniform","C0-uniform-8","C0-uniform-8",110,8,null,"مريول روضات جديد- قياس : 8",50000,1.6,null,null,110,110]
["O14","C0-BL-Wool","C0-BL-Wool-0","C0-BL-Wool-0","-",0,null,"بلوزة صوف كحلي روضات- قياس : 0",40000,3,null,null,"-","-"]
["O14","C0-BL-Wool","C0-BL-Wool-1","C0-BL-Wool-1","-",1,null,"بلوزة صوف كحلي روضات- قياس : 1",40000,1,null,null,"-","-"]
["O14","C0-BL-Wool","C0-BL-Wool-2","C0-BL-Wool-2","-",2,null,"بلوزة صوف كحلي روضات- قياس : 2",40000,1.2,null,null,"-","-"]
["O14","C0-BL-Wool","C0-BL-Wool-3","C0-BL-Wool-3","-",3,null,"بلوزة صوف كحلي روضات- قياس : 3",40000,1.1000000000000001,null,null,"-","-"]
["O15","CA-BL-Wool","CA-BL-Wool-4","CA-BL-Wool-4","-",4,null,"بلوزة صوف كحلية- قياس : 4",50000,1.5,null,null,"-","-"]
["O15","CA-BL-Wool","CA-BL-Wool-5","CA-BL-Wool-5","-",5,null,"بلوزة صوف كحلية- قياس : 5",50000,1.6,null,null,"-","-"]
["O15","CA-BL-Wool","CA-BL-Wool-6","CA-BL-Wool-6",19,6,null,"بلوزة صوف كحلية- قياس : 6",50000,3,null,null,19,19]
["O15","CA-BL-Wool","CA-BL-Wool-7","CA-BL-Wool-7",40,7,null,"بلوزة صوف كحلية- قياس : 7",50000,1,null,null,40,40]
["O15","CA-BL-Wool","CA-BL-Wool-M","CA-BL-Wool-M",44,"M",null,"بلوزة صوف كحلية- قياس : M",50000,1.2,null,null,44,44]
["O16","CA-BL-SS-White","CA-BL-SS-White-14-16-S","CA-BL-SS-White-14-16-S",178,"14-16-S",null,"بلوزة قطنية كم قصير ابيض- قياس : 14-16-S",45000,1.1000000000000001,null,null,178,178]
["O16","CA-BL-SS-White","CA-BL-SS-White-M","CA-BL-SS-White-M",42,"M",null,"بلوزة قطنية كم قصير ابيض- قياس : M",45000,1.5,null,null,42,42]
["O16","CA-BL-SS-White","CA-BL-SS-White-XL+L","CA-BL-SS-White-XL+L","-","XL+L",null,"بلوزة قطنية كم قصير ابيض- قياس : XL+L",45000,1.6,null,null,"-","-"]
["O17","CA-JacNavy-Win","CA-JacNavy-Win-4","CA-JacNavy-Win-4",2,4,null,"جاكيت شتوي كحلي- قياس : 4",135000,2,null,null,2,2]
["O17","CA-JacNavy-Win","CA-JacNavy-Win-6","CA-JacNavy-Win-6",89,6,null,"جاكيت شتوي كحلي- قياس : 6",135000,1.5,null,null,101,89]
["O17","CA-JacNavy-Win","CA-JacNavy-Win-8","CA-JacNavy-Win-8",35,8,null,"جاكيت شتوي كحلي- قياس : 8",135000,1.6,null,null,63,35]
["O17","CA-JacNavy-Win","CA-JacNavy-Win-10","CA-JacNavy-Win-10",180,10,null,"جاكيت شتوي كحلي- قياس : 10",135000,3,null,null,194,180]
["O17","CA-JacNavy-Win","CA-JacNavy-Win-12","CA-JacNavy-Win-12",99,12,null,"جاكيت شتوي كحلي- قياس : 12",135000,1,null,null,112,99]
["O17","CA-JacNavy-Win","CA-JacNavy-Win-14","CA-JacNavy-Win-14",131,14,null,"جاكيت شتوي كحلي- قياس : 14",135000,1.2,null,null,137,131]
["O17","CA-JacNavy-Win","CA-JacNavy-Win-16","CA-JacNavy-Win-16",80,16,null,"جاكيت شتوي كحلي- قياس : 16",135000,1.1000000000000001,null,null,93,80]
["O17","CA-JacNavy-Win","CA-JacNavy-Win-S","CA-JacNavy-Win-S",143,"S",null,"جاكيت شتوي كحلي- قياس : S",135000,1.5,null,null,152,143]
["O17","CA-JacNavy-Win","CA-JacNavy-Win-M","CA-JacNavy-Win-M",59,"M",null,"جاكيت شتوي كحلي- قياس : M",135000,1.6,null,null,67,59]
["O17","CA-JacNavy-Win","CA-JacNavy-Win-L","CA-JacNavy-Win-L",135,"L",null,"جاكيت شتوي كحلي- قياس : L",135000,3,null,null,136,135]
["O17","CA-JacNavy-Win","CA-JacNavy-Win-XL","CA-JacNavy-Win-XL",131,"XL",null,"جاكيت شتوي كحلي- قياس : XL",135000,1,null,null,131,131]
["O17","CA-JacNavy-Win","CA-JacNavy-Win-XXL","CA-JacNavy-Win-XXL",12,"XXL",null,"جاكيت شتوي كحلي- قياس : XXL",135000,1.2,null,null,13,12]
["O17","CA-JacNavy-Win","CA-JacNavy-Win-XS","CA-JacNavy-Win-XS",1,"XS",null,"جاكيت شتوي كحلي- قياس : XS",135000,1.1000000000000001,null,null,1,1]
["O18","CA-Sp-Jacket","CA-Sp-Jacket-4","CA-Sp-Jacket-4",34,4,null,"جاكيت رياضة افرادي- قياس : 4",135000,1.5,null,null,34,34]
["O18","CA-Sp-Jacket","CA-Sp-Jacket-6","CA-Sp-Jacket-6",45,6,null,"جاكيت رياضة افرادي- قياس : 6",135000,1.6,null,null,44,45]
["O18","CA-Sp-Jacket","CA-Sp-Jacket-8","CA-Sp-Jacket-8",46,8,null,"جاكيت رياضة افرادي- قياس : 8",135000,3,null,null,50,46]
["O18","CA-Sp-Jacket","CA-Sp-Jacket-10","CA-Sp-Jacket-10",43,10,null,"جاكيت رياضة افرادي- قياس : 10",135000,1,null,null,46,43]
["O18","CA-Sp-Jacket","CA-Sp-Jacket-12","CA-Sp-Jacket-12",89,12,null,"جاكيت رياضة افرادي- قياس : 12",135000,1.2,null,null,91,89]
["O18","CA-Sp-Jacket","CA-Sp-Jacket-14","CA-Sp-Jacket-14",171,14,null,"جاكيت رياضة افرادي- قياس : 14",135000,1.1000000000000001,null,null,174,171]
["O18","CA-Sp-Jacket","CA-Sp-Jacket-16","CA-Sp-Jacket-16",76,16,null,"جاكيت رياضة افرادي- قياس : 16",135000,1.5,null,null,78,76]
["O18","CA-Sp-Jacket","CA-Sp-Jacket-S","CA-Sp-Jacket-S",90,"S",null,"جاكيت رياضة افرادي- قياس : S",135000,1.6,null,null,90,90]
["O18","CA-Sp-Jacket","CA-Sp-Jacket-M","CA-Sp-Jacket-M",43,"M",null,"جاكيت رياضة افرادي- قياس : M",135000,2,null,null,45,43]
["O18","CA-Sp-Jacket","CA-Sp-Jacket-L","CA-Sp-Jacket-L",33,"L",null,"جاكيت رياضة افرادي- قياس : L",135000,1.5,null,null,32,33]
["O18","CA-Sp-Jacket","CA-Sp-Jacket-XL","CA-Sp-Jacket-XL","-","XL",null,"جاكيت رياضة افرادي- قياس : XL",135000,1.6,null,null,"-","-"]
["O18","CA-Sp-Jacket","CA-Sp-Jacket-XXL","CA-Sp-Jacket-XXL","-","XXL",null,"جاكيت رياضة افرادي- قياس : XXL",135000,3,null,null,"-","-"]
["O19","CA-SP-Blouse","CA-SP-Blouse-3XS","CA-SP-Blouse-3XS",0,"3XS",null,"TECTELبلوزة رياضة  - قياس : 3XS",100000,1,null,null,1,0]
["O19","CA-SP-Blouse","CA-SP-Blouse-2XS","CA-SP-Blouse-2XS",9,"2XS",null,"TECTELبلوزة رياضة  - قياس : 2XS",100000,1.2,null,null,15,13]
["O19","CA-SP-Blouse","CA-SP-Blouse-XS","CA-SP-Blouse-XS",50,"XS",null,"TECTELبلوزة رياضة  - قياس : XS",100000,1.1000000000000001,null,null,51,50]
["O19","CA-SP-Blouse","CA-SP-Blouse-S","CA-SP-Blouse-S",5,"S",null,"TECTELبلوزة رياضة  - قياس : S",100000,1.5,null,null,8,5]
["O19","CA-SP-Blouse","CA-SP-Blouse-M","CA-SP-Blouse-M",22,"M",null,"TECTELبلوزة رياضة  - قياس : M",100000,1.6,null,null,24,22]
["O19","CA-SP-Blouse","CA-SP-Blouse-L","CA-SP-Blouse-L",141,"L",null,"TECTELبلوزة رياضة  - قياس : L",100000,3,null,null,141,141]
["O19","CA-SP-Blouse","CA-SP-Blouse-XL","CA-SP-Blouse-XL",1,"XL",null,"TECTELبلوزة رياضة  - قياس : XL",100000,1,null,null,1,1]
["O20","CA-SP-Short","CA-SP-Short-3XS","CA-SP-Short-3XS",67,"3XS",null,"شورت رياضة TECTEL- قياس : 3XS",90000,1.2,null,null,67,67]
["O20","CA-SP-Short","CA-SP-Short-2XS","CA-SP-Short-2XS",133,"2XS",null,"شورت رياضة TECTEL- قياس : 2XS",90000,1.1000000000000001,null,null,133,133]
["O20","CA-SP-Short","CA-SP-Short-XS","CA-SP-Short-XS",105,"XS",null,"شورت رياضة TECTEL- قياس : XS",90000,1.5,null,null,107,105]
["O20","CA-SP-Short","CA-SP-Short-S","CA-SP-Short-S",98,"S",null,"شورت رياضة TECTEL- قياس : S",90000,1.6,null,null,99,98]
["O20","CA-SP-Short","CA-SP-Short-M","CA-SP-Short-M",63,"M",null,"شورت رياضة TECTEL- قياس : M",90000,3,null,null,65,63]
["O20","CA-SP-Short","CA-SP-Short-L","CA-SP-Short-L",159,"L",null,"شورت رياضة TECTEL- قياس : L",90000,1,null,null,160,159]
["O20","CA-SP-Short","CA-SP-Short-XL","CA-SP-Short-XL",104,"XL",null,"شورت رياضة TECTEL- قياس : XL",90000,1.2,null,null,105,104]
["O20","CA-SP-Short","CA-SP-Short-XXL","CA-SP-Short-XXL",90,"XXL",null,"شورت رياضة TECTEL- قياس : XXL",90000,1.1000000000000001,null,null,90,90]
["O20","CA-SP-Short","CA-SP-Short-3XL","CA-SP-Short-3XL",42,"3XL",null,"شورت رياضة TECTEL- قياس : 3XL",90000,1.5,null,null,42,42]

{"sheet":"Items2023 original","index":3,"n_rows":231,"n_cols":14,"rows_kept":231,"cut":false,"hidden":false,"merged":[]}
["CategoryNb","Category","ItemCode","Barcode description","Original Quantity in Stock (delivered in 2020-2021)","Quantity in Stock 7 Sep 2022","Size","Size Description","Barcode description","Price (LBP)","Price 2023","Unit (LBP/USD)","Notes","Category Desc"]
["N01","C0-Tergal","C0-Tergal-3","مريول tergal   لقسم الروضات مع تطريز إضافي أحرف وأرقام والشعار -قياس : 3",56,5,3,"3 سنوات","مريول tergal   لقسم الروضات مع تطريز إضافي أحرف وأرقام والشعار -قياس : 3",100000,null,null,null,"مريول tergal   لقسم الروضات مع تطريز إضافي أحرف وأرقام والشعار "]
["N01","C0-Tergal","C0-Tergal-4","مريول tergal   لقسم الروضات مع تطريز إضافي أحرف وأرقام والشعار -قياس : 4",255,189,4,"3 سنوات","مريول tergal   لقسم الروضات مع تطريز إضافي أحرف وأرقام والشعار -قياس : 4",100000,null,null,null,"مريول tergal   لقسم الروضات مع تطريز إضافي أحرف وأرقام والشعار "]
["N01","C0-Tergal","C0-Tergal-5","مريول tergal   لقسم الروضات مع تطريز إضافي أحرف وأرقام والشعار -قياس : 5",162,76,5,"4 سنوات","مريول tergal   لقسم الروضات مع تطريز إضافي أحرف وأرقام والشعار -قياس : 5",100000,null,null,null,"مريول tergal   لقسم الروضات مع تطريز إضافي أحرف وأرقام والشعار "]
["N01","C0-Tergal","C0-Tergal-6","مريول tergal   لقسم الروضات مع تطريز إضافي أحرف وأرقام والشعار -قياس : 6",25,39,6,"5 سنوات","مريول tergal   لقسم الروضات مع تطريز إضافي أحرف وأرقام والشعار -قياس : 6",100000,null,null,null,"مريول tergal   لقسم الروضات مع تطريز إضافي أحرف وأرقام والشعار "]
["N01","C0-Tergal","C0-Tergal-7","مريول tergal   لقسم الروضات مع تطريز إضافي أحرف وأرقام والشعار -قياس : 7",20,8,7,"6 سنوات","مريول tergal   لقسم الروضات مع تطريز إضافي أحرف وأرقام والشعار -قياس : 7",100000,null,null,null,"مريول tergal   لقسم الروضات مع تطريز إضافي أحرف وأرقام والشعار "]
["N02","C12-M-LS","C12-M-LS-6","قميص كم طويل –بنين (لون أزرق )للقسم الإبتدائي-قياس : 6",150,127,6,"6-7 سنوات","قميص كم طويل –بنين (لون أزرق )للقسم الإبتدائي-قياس : 6",145000,null,null,null,"قميص كم طويل –بنين (لون أزرق )للقسم الإبتدائي"]
["N02","C12-M-LS","C12-M-LS-8","قميص كم طويل –بنين (لون أزرق )للقسم الإبتدائي-قياس : 8",300,260,8,"7-8 سنوات","قميص كم طويل –بنين (لون أزرق )للقسم الإبتدائي-قياس : 8",145000,null,null,null,"قميص كم طويل –بنين (لون أزرق )للقسم الإبتدائي"]
["N02","C12-M-LS","C12-M-LS-10","قميص كم طويل –بنين (لون أزرق )للقسم الإبتدائي-قياس : 10",300,261,10,"8-9 سنوات","قميص كم طويل –بنين (لون أزرق )للقسم الإبتدائي-قياس : 10",145000,null,null,null,"قميص كم طويل –بنين (لون أزرق )للقسم الإبتدائي"]
["N02","C12-M-LS","C12-M-LS-12","قميص كم طويل –بنين (لون أزرق )للقسم الإبتدائي-قياس : 12",250,210,12,"9-10 سنوات ","قميص كم طويل –بنين (لون أزرق )للقسم الإبتدائي-قياس : 12",145000,null,null,null,"قميص كم طويل –بنين (لون أزرق )للقسم الإبتدائي"]
["N02","C12-M-LS","C12-M-LS-14","قميص كم طويل –بنين (لون أزرق )للقسم الإبتدائي-قياس : 14",200,170,14,"10-12 سنة ","قميص كم طويل –بنين (لون أزرق )للقسم الإبتدائي-قياس : 14",145000,null,null,null,"قميص كم طويل –بنين (لون أزرق )للقسم الإبتدائي"]
["N03","C12-F-LS","C12-F-LS-6","قميص كم طويل-بنات(لون زهري) للقسم الإبتدائي-قياس : 6",150,122,6,"6-7 سنوات","قميص كم طويل-بنات(لون زهري) للقسم الإبتدائي-قياس : 6",145000,null,null,null,"قميص كم طويل-بنات(لون زهري) للقسم الإبتدائي"]
["N03","C12-F-LS","C12-F-LS-8","قميص كم طويل-بنات(لون زهري) للقسم الإبتدائي-قياس : 8",300,245,8,"7-8 سنوات","قميص كم طويل-بنات(لون زهري) للقسم الإبتدائي-قياس : 8",145000,null,null,null,"قميص كم طويل-بنات(لون زهري) للقسم الإبتدائي"]
["N03","C12-F-LS","C12-F-LS-10","قميص كم طويل-بنات(لون زهري) للقسم الإبتدائي-قياس : 10",300,257,10,"8-9 سنوات","قميص كم طويل-بنات(لون زهري) للقسم الإبتدائي-قياس : 10",145000,null,null,null,"قميص كم طويل-بنات(لون زهري) للقسم الإبتدائي"]
["N03","C12-F-LS","C12-F-LS-12","قميص كم طويل-بنات(لون زهري) للقسم الإبتدائي-قياس : 12",250,218,12,"9-10 سنوات ","قميص كم طويل-بنات(لون زهري) للقسم الإبتدائي-قياس : 12",145000,null,null,null,"قميص كم طويل-بنات(لون زهري) للقسم الإبتدائي"]
["N03","C12-F-LS","C12-F-LS-14","قميص كم طويل-بنات(لون زهري) للقسم الإبتدائي-قياس : 14",200,171,14,"10-12 سنة ","قميص كم طويل-بنات(لون زهري) للقسم الإبتدائي-قياس : 14",145000,null,null,null,"قميص كم طويل-بنات(لون زهري) للقسم الإبتدائي"]
["N04","C34-M-LS","C34-M-LS-14","قميص كم طويل-بنين(لون رمادي)للقسم المتوسط والثانوي  -قياس : 14",200,189,14,null,"قميص كم طويل-بنين(لون رمادي)للقسم المتوسط والثانوي  -قياس : 14",145000,null,null,null,"قميص كم طويل-بنين(لون رمادي)للقسم المتوسط والثانوي  "]
["N04","C34-M-LS","C34-M-LS-16","قميص كم طويل-بنين(لون رمادي)للقسم المتوسط والثانوي  -قياس : 16",200,177,16,null,"قميص كم طويل-بنين(لون رمادي)للقسم المتوسط والثانوي  -قياس : 16",145000,null,null,null,"قميص كم طويل-بنين(لون رمادي)للقسم المتوسط والثانوي  "]
["N04","C34-M-LS","C34-M-LS-S","قميص كم طويل-بنين(لون رمادي)للقسم المتوسط والثانوي  -قياس : S",150,136,"S",null,"قميص كم طويل-بنين(لون رمادي)للقسم المتوسط والثانوي  -قياس : S",145000,null,null,null,"قميص كم طويل-بنين(لون رمادي)للقسم المتوسط والثانوي  "]
["N04","C34-M-LS","C34-M-LS-M","قميص كم طويل-بنين(لون رمادي)للقسم المتوسط والثانوي  -قياس : M",150,145,"M",null,"قميص كم طويل-بنين(لون رمادي)للقسم المتوسط والثانوي  -قياس : M",145000,null,null,null,"قميص كم طويل-بنين(لون رمادي)للقسم المتوسط والثانوي  "]
["N04","C34-M-LS","C34-M-LS-L","قميص كم طويل-بنين(لون رمادي)للقسم المتوسط والثانوي  -قياس : L",100,93,"L",null,"قميص كم طويل-بنين(لون رمادي)للقسم المتوسط والثانوي  -قياس : L",145000,null,null,null,"قميص كم طويل-بنين(لون رمادي)للقسم المتوسط والثانوي  "]
["N04","C34-M-LS","C34-M-LS-XL","قميص كم طويل-بنين(لون رمادي)للقسم المتوسط والثانوي  -قياس : XL",50,50,"XL",null,"قميص كم طويل-بنين(لون رمادي)للقسم المتوسط والثانوي  -قياس : XL",145000,null,null,null,"قميص كم طويل-بنين(لون رمادي)للقسم المتوسط والثانوي  "]
["N05","C34-F-LS","C34-F-LS-14","قميص كم طويل-بنات (لون موف)للقسم المتوسط والثانوي-قياس : 14",200,191,14,null,"قميص كم طويل-بنات (لون موف)للقسم المتوسط والثانوي-قياس : 14",145000,null,null,null,"قميص كم طويل-بنات (لون موف)للقسم المتوسط والثانوي"]
["N05","C34-F-LS","C34-F-LS-16","قميص كم طويل-بنات (لون موف)للقسم المتوسط والثانوي-قياس : 16",200,188,16,null,"قميص كم طويل-بنات (لون موف)للقسم المتوسط والثانوي-قياس : 16",145000,null,null,null,"قميص كم طويل-بنات (لون موف)للقسم المتوسط والثانوي"]
["N05","C34-F-LS","C34-F-LS-S","قميص كم طويل-بنات (لون موف)للقسم المتوسط والثانوي-قياس : S",150,134,"S",null,"قميص كم طويل-بنات (لون موف)للقسم المتوسط والثانوي-قياس : S",145000,null,null,null,"قميص كم طويل-بنات (لون موف)للقسم المتوسط والثانوي"]
["N05","C34-F-LS","C34-F-LS-M","قميص كم طويل-بنات (لون موف)للقسم المتوسط والثانوي-قياس : M",150,130,"M",null,"قميص كم طويل-بنات (لون موف)للقسم المتوسط والثانوي-قياس : M",145000,null,null,null,"قميص كم طويل-بنات (لون موف)للقسم المتوسط والثانوي"]
["N05","C34-F-LS","C34-F-LS-L","قميص كم طويل-بنات (لون موف)للقسم المتوسط والثانوي-قياس : L",100,70,"L",null,"قميص كم طويل-بنات (لون موف)للقسم المتوسط والثانوي-قياس : L",145000,null,null,null,"قميص كم طويل-بنات (لون موف)للقسم المتوسط والثانوي"]
["N05","C34-F-LS","C34-F-LS-XL","قميص كم طويل-بنات (لون موف)للقسم المتوسط والثانوي-قياس : XL",50,37,"XL",null,"قميص كم طويل-بنات (لون موف)للقسم المتوسط والثانوي-قياس : XL",145000,null,null,null,"قميص كم طويل-بنات (لون موف)للقسم المتوسط والثانوي"]
["N06","C12-M-SS","C12-M-SS-6","قميص كم قصير-بنين(لون أزرق)للقسم الإبتدائي -قياس : 6",150,144,6,"6-7سنوات","قميص كم قصير-بنين(لون أزرق)للقسم الإبتدائي -قياس : 6",125000,null,null,null,"قميص كم قصير-بنين(لون أزرق)للقسم الإبتدائي "]
["N06","C12-M-SS","C12-M-SS-8","قميص كم قصير-بنين(لون أزرق)للقسم الإبتدائي -قياس : 8",300,289,8,"7-8سنوات","قميص كم قصير-بنين(لون أزرق)للقسم الإبتدائي -قياس : 8",125000,null,null,null,"قميص كم قصير-بنين(لون أزرق)للقسم الإبتدائي "]
["N06","C12-M-SS","C12-M-SS-10","قميص كم قصير-بنين(لون أزرق)للقسم الإبتدائي -قياس : 10",300,290,10,"8-9سنوات","قميص كم قصير-بنين(لون أزرق)للقسم الإبتدائي -قياس : 10",125000,null,null,null,"قميص كم قصير-بنين(لون أزرق)للقسم الإبتدائي "]
["N06","C12-M-SS","C12-M-SS-12","قميص كم قصير-بنين(لون أزرق)للقسم الإبتدائي -قياس : 12",250,236,12,"9-10سنوات","قميص كم قصير-بنين(لون أزرق)للقسم الإبتدائي -قياس : 12",125000,null,null,null,"قميص كم قصير-بنين(لون أزرق)للقسم الإبتدائي "]
["N06","C12-M-SS","C12-M-SS-14","قميص كم قصير-بنين(لون أزرق)للقسم الإبتدائي -قياس : 14",200,188,14,"10-12سنة ","قميص كم قصير-بنين(لون أزرق)للقسم الإبتدائي -قياس : 14",125000,null,null,null,"قميص كم قصير-بنين(لون أزرق)للقسم الإبتدائي "]
["N07","C12-F-SS","C12-F-SS-6","قميص كم قصير –بنات (لون زهري )للقسم الإبتدائي-قياس : 6",150,146,6,"6-7 سنوات","قميص كم قصير –بنات (لون زهري )للقسم الإبتدائي-قياس : 6",125000,null,null,null,"قميص كم قصير –بنات (لون زهري )للقسم الإبتدائي"]
["N07","C12-F-SS","C12-F-SS-8","قميص كم قصير –بنات (لون زهري )للقسم الإبتدائي-قياس : 8",300,288,8,"7-8 سنوات","قميص كم قصير –بنات (لون زهري )للقسم الإبتدائي-قياس : 8",125000,null,null,null,"قميص كم قصير –بنات (لون زهري )للقسم الإبتدائي"]
["N07","C12-F-SS","C12-F-SS-10","قميص كم قصير –بنات (لون زهري )للقسم الإبتدائي-قياس : 10",300,291,10,"8-9 سنوات","قميص كم قصير –بنات (لون زهري )للقسم الإبتدائي-قياس : 10",125000,null,null,null,"قميص كم قصير –بنات (لون زهري )للقسم الإبتدائي"]
["N07","C12-F-SS","C12-F-SS-12","قميص كم قصير –بنات (لون زهري )للقسم الإبتدائي-قياس : 12",250,243,12,"9-10 سنوات ","قميص كم قصير –بنات (لون زهري )للقسم الإبتدائي-قياس : 12",125000,null,null,null,"قميص كم قصير –بنات (لون زهري )للقسم الإبتدائي"]
["N07","C12-F-SS","C12-F-SS-14","قميص كم قصير –بنات (لون زهري )للقسم الإبتدائي-قياس : 14",200,189,14,"10-12 سنة ","قميص كم قصير –بنات (لون زهري )للقسم الإبتدائي-قياس : 14",125000,null,null,null,"قميص كم قصير –بنات (لون زهري )للقسم الإبتدائي"]
["N08","C34-M-SS","C34-M-SS-14","قميص كم قصير-بنين(لون رمادي) للقسم المتوسط والثانوي-قياس : 14",200,194,14,null,"قميص كم قصير-بنين(لون رمادي) للقسم المتوسط والثانوي-قياس : 14",125000,null,null,null,"قميص كم قصير-بنين(لون رمادي) للقسم المتوسط والثانوي"]
["N08","C34-M-SS","C34-M-SS-16","قميص كم قصير-بنين(لون رمادي) للقسم المتوسط والثانوي-قياس : 16",200,190,16,null,"قميص كم قصير-بنين(لون رمادي) للقسم المتوسط والثانوي-قياس : 16",125000,null,null,null,"قميص كم قصير-بنين(لون رمادي) للقسم المتوسط والثانوي"]
["N08","C34-M-SS","C34-M-SS-S","قميص كم قصير-بنين(لون رمادي) للقسم المتوسط والثانوي-قياس : S",150,141,"S",null,"قميص كم قصير-بنين(لون رمادي) للقسم المتوسط والثانوي-قياس : S",125000,null,null,null,"قميص كم قصير-بنين(لون رمادي) للقسم المتوسط والثانوي"]
["N08","C34-M-SS","C34-M-SS-M","قميص كم قصير-بنين(لون رمادي) للقسم المتوسط والثانوي-قياس : M",150,144,"M",null,"قميص كم قصير-بنين(لون رمادي) للقسم المتوسط والثانوي-قياس : M",125000,null,null,null,"قميص كم قصير-بنين(لون رمادي) للقسم المتوسط والثانوي"]
["N08","C34-M-SS","C34-M-SS-L","قميص كم قصير-بنين(لون رمادي) للقسم المتوسط والثانوي-قياس : L",100,96,"L",null,"قميص كم قصير-بنين(لون رمادي) للقسم المتوسط والثانوي-قياس : L",125000,null,null,null,"قميص كم قصير-بنين(لون رمادي) للقسم المتوسط والثانوي"]
["N08","C34-M-SS","C34-M-SS-XL","قميص كم قصير-بنين(لون رمادي) للقسم المتوسط والثانوي-قياس : XL",50,50,"XL",null,"قميص كم قصير-بنين(لون رمادي) للقسم المتوسط والثانوي-قياس : XL",125000,null,null,null,"قميص كم قصير-بنين(لون رمادي) للقسم المتوسط والثانوي"]
["N09","C34-F-SS","C34-F-SS-14","قميص كم قصير-بنات (لون موف)للقسم المتوسط والثانوي  -قياس : 14",200,195,14,null,"قميص كم قصير-بنات (لون موف)للقسم المتوسط والثانوي  -قياس : 14",125000,null,null,null,"قميص كم قصير-بنات (لون موف)للقسم المتوسط والثانوي  "]
["N09","C34-F-SS","C34-F-SS-16","قميص كم قصير-بنات (لون موف)للقسم المتوسط والثانوي  -قياس : 16",200,199,16,null,"قميص كم قصير-بنات (لون موف)للقسم المتوسط والثانوي  -قياس : 16",125000,null,null,null,"قميص كم قصير-بنات (لون موف)للقسم المتوسط والثانوي  "]
["N09","C34-F-SS","C34-F-SS-S","قميص كم قصير-بنات (لون موف)للقسم المتوسط والثانوي  -قياس : S",150,145,"S",null,"قميص كم قصير-بنات (لون موف)للقسم المتوسط والثانوي  -قياس : S",125000,null,null,null,"قميص كم قصير-بنات (لون موف)للقسم المتوسط والثانوي  "]
["N09","C34-F-SS","C34-F-SS-M","قميص كم قصير-بنات (لون موف)للقسم المتوسط والثانوي  -قياس : M",150,142,"M",null,"قميص كم قصير-بنات (لون موف)للقسم المتوسط والثانوي  -قياس : M",125000,null,null,null,"قميص كم قصير-بنات (لون موف)للقسم المتوسط والثانوي  "]
["N09","C34-F-SS","C34-F-SS-L","قميص كم قصير-بنات (لون موف)للقسم المتوسط والثانوي  -قياس : L",100,96,"L",null,"قميص كم قصير-بنات (لون موف)للقسم المتوسط والثانوي  -قياس : L",125000,null,null,null,"قميص كم قصير-بنات (لون موف)للقسم المتوسط والثانوي  "]
["N09","C34-F-SS","C34-F-SS-XL","قميص كم قصير-بنات (لون موف)للقسم المتوسط والثانوي  -قياس : XL",50,47,"XL",null,"قميص كم قصير-بنات (لون موف)للقسم المتوسط والثانوي  -قياس : XL",125000,null,null,null,"قميص كم قصير-بنات (لون موف)للقسم المتوسط والثانوي  "]
["N11","CA-Gilet","CA-Gilet-6","جيلية صوف نوعية ممتازة مع تطريز –خيط تركي (50%صوف-50%أكريليك)-قياس : 6",100,90,6,null,"جيلية صوف نوعية ممتازة مع تطريز –خيط تركي (50%صوف-50%أكريليك)-قياس : 6",145000,null,null,null,"جيلية صوف نوعية ممتازة مع تطريز –خيط تركي (50%صوف-50%أكريليك)"]
["N11","CA-Gilet","CA-Gilet-8","جيلية صوف نوعية ممتازة مع تطريز –خيط تركي (50%صوف-50%أكريليك)-قياس : 8",300,282,8,null,"جيلية صوف نوعية ممتازة مع تطريز –خيط تركي (50%صوف-50%أكريليك)-قياس : 8",145000,null,null,null,"جيلية صوف نوعية ممتازة مع تطريز –خيط تركي (50%صوف-50%أكريليك)"]
["N11","CA-Gilet","CA-Gilet-10","جيلية صوف نوعية ممتازة مع تطريز –خيط تركي (50%صوف-50%أكريليك)-قياس : 10",300,288,10,null,"جيلية صوف نوعية ممتازة مع تطريز –خيط تركي (50%صوف-50%أكريليك)-قياس : 10",145000,null,null,null,"جيلية صوف نوعية ممتازة مع تطريز –خيط تركي (50%صوف-50%أكريليك)"]
["N11","CA-Gilet","CA-Gilet-12","جيلية صوف نوعية ممتازة مع تطريز –خيط تركي (50%صوف-50%أكريليك)-قياس : 12",300,287,12,null,"جيلية صوف نوعية ممتازة مع تطريز –خيط تركي (50%صوف-50%أكريليك)-قياس : 12",145000,null,null,null,"جيلية صوف نوعية ممتازة مع تطريز –خيط تركي (50%صوف-50%أكريليك)"]
["N11","CA-Gilet","CA-Gilet-14","جيلية صوف نوعية ممتازة مع تطريز –خيط تركي (50%صوف-50%أكريليك)-قياس : 14",250,240,14,null,"جيلية صوف نوعية ممتازة مع تطريز –خيط تركي (50%صوف-50%أكريليك)-قياس : 14",145000,null,null,null,"جيلية صوف نوعية ممتازة مع تطريز –خيط تركي (50%صوف-50%أكريليك)"]
["N11","CA-Gilet","CA-Gilet-16","جيلية صوف نوعية ممتازة مع تطريز –خيط تركي (50%صوف-50%أكريليك)-قياس : 16",250,244,16,null,"جيلية صوف نوعية ممتازة مع تطريز –خيط تركي (50%صوف-50%أكريليك)-قياس : 16",145000,null,null,null,"جيلية صوف نوعية ممتازة مع تطريز –خيط تركي (50%صوف-50%أكريليك)"]
["N11","CA-Gilet","CA-Gilet-S","جيلية صوف نوعية ممتازة مع تطريز –خيط تركي (50%صوف-50%أكريليك)-قياس : S",200,193,"S",null,"جيلية صوف نوعية ممتازة مع تطريز –خيط تركي (50%صوف-50%أكريليك)-قياس : S",145000,null,null,null,"جيلية صوف نوعية ممتازة مع تطريز –خيط تركي (50%صوف-50%أكريليك)"]
["N11","CA-Gilet","CA-Gilet-M","جيلية صوف نوعية ممتازة مع تطريز –خيط تركي (50%صوف-50%أكريليك)-قياس : M",150,156,"M",null,"جيلية صوف نوعية ممتازة مع تطريز –خيط تركي (50%صوف-50%أكريليك)-قياس : M",145000,null,null,null,"جيلية صوف نوعية ممتازة مع تطريز –خيط تركي (50%صوف-50%أكريليك)"]
["N11","CA-Gilet","CA-Gilet-L","جيلية صوف نوعية ممتازة مع تطريز –خيط تركي (50%صوف-50%أكريليك)-قياس : L",100,100,"L",null,"جيلية صوف نوعية ممتازة مع تطريز –خيط تركي (50%صوف-50%أكريليك)-قياس : L",145000,null,null,null,"جيلية صوف نوعية ممتازة مع تطريز –خيط تركي (50%صوف-50%أكريليك)"]
["N11","CA-Gilet","CA-Gilet-XL","جيلية صوف نوعية ممتازة مع تطريز –خيط تركي (50%صوف-50%أكريليك)-قياس : XL",50,48,"XL",null,"جيلية صوف نوعية ممتازة مع تطريز –خيط تركي (50%صوف-50%أكريليك)-قياس : XL",145000,null,null,null,"جيلية صوف نوعية ممتازة مع تطريز –خيط تركي (50%صوف-50%أكريليك)"]
["N12","C34-F-LS-Hijab","C34-F-LS-Hijab-14","قميص كم طويل للمحجبات-بنات(لون موف)للقسم المتوسط والثانوي -قياس : 14",35,31,14,null,"قميص كم طويل للمحجبات-بنات(لون موف)للقسم المتوسط والثانوي -قياس : 14",145000,null,null,null,"قميص كم طويل للمحجبات-بنات(لون موف)للقسم المتوسط والثانوي "]
["N12","C34-F-LS-Hijab","C34-F-LS-Hijab-16","قميص كم طويل للمحجبات-بنات(لون موف)للقسم المتوسط والثانوي -قياس : 16",35,32,16,null,"قميص كم طويل للمحجبات-بنات(لون موف)للقسم المتوسط والثانوي -قياس : 16",145000,null,null,null,"قميص كم طويل للمحجبات-بنات(لون موف)للقسم المتوسط والثانوي "]
["N12","C34-F-LS-Hijab","C34-F-LS-Hijab-S","قميص كم طويل للمحجبات-بنات(لون موف)للقسم المتوسط والثانوي -قياس : S",35,31,"S",null,"قميص كم طويل للمحجبات-بنات(لون موف)للقسم المتوسط والثانوي -قياس : S",145000,null,null,null,"قميص كم طويل للمحجبات-بنات(لون موف)للقسم المتوسط والثانوي "]
["N12","C34-F-LS-Hijab","C34-F-LS-Hijab-M","قميص كم طويل للمحجبات-بنات(لون موف)للقسم المتوسط والثانوي -قياس : M",25,18,"M",null,"قميص كم طويل للمحجبات-بنات(لون موف)للقسم المتوسط والثانوي -قياس : M",145000,null,null,null,"قميص كم طويل للمحجبات-بنات(لون موف)للقسم المتوسط والثانوي "]
["N12","C34-F-LS-Hijab","C34-F-LS-Hijab-L","قميص كم طويل للمحجبات-بنات(لون موف)للقسم المتوسط والثانوي -قياس : L",20,16,"L",null,"قميص كم طويل للمحجبات-بنات(لون موف)للقسم المتوسط والثانوي -قياس : L",145000,null,null,null,"قميص كم طويل للمحجبات-بنات(لون موف)للقسم المتوسط والثانوي "]
["N12","C34-F-LS-Hijab","C34-F-LS-Hijab-XL","قميص كم طويل للمحجبات-بنات(لون موف)للقسم المتوسط والثانوي -قياس : XL",10,6,"XL",null,"قميص كم طويل للمحجبات-بنات(لون موف)للقسم المتوسط والثانوي -قياس : XL",145000,null,null,null,"قميص كم طويل للمحجبات-بنات(لون موف)للقسم المتوسط والثانوي "]
["O01","CA-BL-SS-Blue","CA-BL-SS-Blue-4","بلوزة قطنية زرقاء كم قصير - قياس : 4",47,47,4,null,"بلوزة قطنية زرقاء كم قصير - قياس : 4",80000,null,null,null,"بلوزة قطنية زرقاء كم قصير "]
["O01","CA-BL-SS-Blue","CA-BL-SS-Blue-6","بلوزة قطنية زرقاء كم قصير - قياس : 6",136,133,6,null,"بلوزة قطنية زرقاء كم قصير - قياس : 6",80000,null,null,null,"بلوزة قطنية زرقاء كم قصير "]
["O01","CA-BL-SS-Blue","CA-BL-SS-Blue-8","بلوزة قطنية زرقاء كم قصير - قياس : 8",122,106,8,null,"بلوزة قطنية زرقاء كم قصير - قياس : 8",80000,null,null,null,"بلوزة قطنية زرقاء كم قصير "]
["O01","CA-BL-SS-Blue","CA-BL-SS-Blue-10","بلوزة قطنية زرقاء كم قصير - قياس : 10",154,122,10,null,"بلوزة قطنية زرقاء كم قصير - قياس : 10",80000,null,null,null,"بلوزة قطنية زرقاء كم قصير "]
["O01","CA-BL-SS-Blue","CA-BL-SS-Blue-12","بلوزة قطنية زرقاء كم قصير - قياس : 12",150,129,12,null,"بلوزة قطنية زرقاء كم قصير - قياس : 12",80000,null,null,null,"بلوزة قطنية زرقاء كم قصير "]
["O01","CA-BL-SS-Blue","CA-BL-SS-Blue-14","بلوزة قطنية زرقاء كم قصير - قياس : 14",194,176,14,null,"بلوزة قطنية زرقاء كم قصير - قياس : 14",80000,null,null,null,"بلوزة قطنية زرقاء كم قصير "]
["O01","CA-BL-SS-Blue","CA-BL-SS-Blue-16","بلوزة قطنية زرقاء كم قصير - قياس : 16",152,152,16,null,"بلوزة قطنية زرقاء كم قصير - قياس : 16",80000,null,null,null,"بلوزة قطنية زرقاء كم قصير "]
["O01","CA-BL-SS-Blue","CA-BL-SS-Blue-18","بلوزة قطنية زرقاء كم قصير - قياس : 18",41,31,18,null,"بلوزة قطنية زرقاء كم قصير - قياس : 18",80000,null,null,null,"بلوزة قطنية زرقاء كم قصير "]
["O01","CA-BL-SS-Blue","CA-BL-SS-Blue-S","بلوزة قطنية زرقاء كم قصير - قياس : S",77,69,"S",null,"بلوزة قطنية زرقاء كم قصير - قياس : S",80000,null,null,null,"بلوزة قطنية زرقاء كم قصير "]
["O01","CA-BL-SS-Blue","CA-BL-SS-Blue-M","بلوزة قطنية زرقاء كم قصير - قياس : M",144,144,"M",null,"بلوزة قطنية زرقاء كم قصير - قياس : M",80000,null,null,null,"بلوزة قطنية زرقاء كم قصير "]
["O01","CA-BL-SS-Blue","CA-BL-SS-Blue-L","بلوزة قطنية زرقاء كم قصير - قياس : L",174,171,"L",null,"بلوزة قطنية زرقاء كم قصير - قياس : L",80000,null,null,null,"بلوزة قطنية زرقاء كم قصير "]
["O01","CA-BL-SS-Blue","CA-BL-SS-Blue-XL","بلوزة قطنية زرقاء كم قصير - قياس : XL",81,81,"XL",null,"بلوزة قطنية زرقاء كم قصير - قياس : XL",80000,null,null,null,"بلوزة قطنية زرقاء كم قصير "]
["O01","CA-BL-SS-Blue","CA-BL-SS-Blue-XXL","بلوزة قطنية زرقاء كم قصير - قياس : XXL",49,49,"XXL",null,"بلوزة قطنية زرقاء كم قصير - قياس : XXL",80000,null,null,null,"بلوزة قطنية زرقاء كم قصير "]
["O02","CA-BL-LS-Blue","CA-BL-LS-Blue-4","بلوزة قطنية زرقاء كم طويل- قياس : 4",73,71,4,null,"بلوزة قطنية زرقاء كم طويل- قياس : 4",110000,null,null,null,"بلوزة قطنية زرقاء كم طويل"]
["O02","CA-BL-LS-Blue","CA-BL-LS-Blue-6","بلوزة قطنية زرقاء كم طويل- قياس : 6",32,26,6,null,"بلوزة قطنية زرقاء كم طويل- قياس : 6",110000,null,null,null,"بلوزة قطنية زرقاء كم طويل"]
["O02","CA-BL-LS-Blue","CA-BL-LS-Blue-8","بلوزة قطنية زرقاء كم طويل- قياس : 8",104,67,8,null,"بلوزة قطنية زرقاء كم طويل- قياس : 8",110000,null,null,null,"بلوزة قطنية زرقاء كم طويل"]
["O02","CA-BL-LS-Blue","CA-BL-LS-Blue-10","بلوزة قطنية زرقاء كم طويل- قياس : 10",220,186,10,null,"بلوزة قطنية زرقاء كم طويل- قياس : 10",110000,null,null,null,"بلوزة قطنية زرقاء كم طويل"]
["O02","CA-BL-LS-Blue","CA-BL-LS-Blue-12","بلوزة قطنية زرقاء كم طويل- قياس : 12",218,178,12,null,"بلوزة قطنية زرقاء كم طويل- قياس : 12",110000,null,null,null,"بلوزة قطنية زرقاء كم طويل"]
["O02","CA-BL-LS-Blue","CA-BL-LS-Blue-14","بلوزة قطنية زرقاء كم طويل- قياس : 14",104,80,14,null,"بلوزة قطنية زرقاء كم طويل- قياس : 14",110000,null,null,null,"بلوزة قطنية زرقاء كم طويل"]
["O02","CA-BL-LS-Blue","CA-BL-LS-Blue-16","بلوزة قطنية زرقاء كم طويل- قياس : 16",181,151,16,null,"بلوزة قطنية زرقاء كم طويل- قياس : 16",110000,null,null,null,"بلوزة قطنية زرقاء كم طويل"]
["O02","CA-BL-LS-Blue","CA-BL-LS-Blue-18","بلوزة قطنية زرقاء كم طويل- قياس : 18",33,18,18,null,"بلوزة قطنية زرقاء كم طويل- قياس : 18",110000,null,null,null,"بلوزة قطنية زرقاء كم طويل"]
["O02","CA-BL-LS-Blue","CA-BL-LS-Blue-S","بلوزة قطنية زرقاء كم طويل- قياس : S",50,35,"S",null,"بلوزة قطنية زرقاء كم طويل- قياس : S",110000,null,null,null,"بلوزة قطنية زرقاء كم طويل"]
["O02","CA-BL-LS-Blue","CA-BL-LS-Blue-M","بلوزة قطنية زرقاء كم طويل- قياس : M",69,63,"M",null,"بلوزة قطنية زرقاء كم طويل- قياس : M",110000,null,null,null,"بلوزة قطنية زرقاء كم طويل"]
["O02","CA-BL-LS-Blue","CA-BL-LS-Blue-L","بلوزة قطنية زرقاء كم طويل- قياس : L",86,82,"L",null,"بلوزة قطنية زرقاء كم طويل- قياس : L",110000,null,null,null,"بلوزة قطنية زرقاء كم طويل"]
["O02","CA-BL-LS-Blue","CA-BL-LS-Blue-XL","بلوزة قطنية زرقاء كم طويل- قياس : XL",29,26,"XL",null,"بلوزة قطنية زرقاء كم طويل- قياس : XL",110000,null,null,null,"بلوزة قطنية زرقاء كم طويل"]
["O02","CA-BL-LS-Blue","CA-BL-LS-Blue-XXL","بلوزة قطنية زرقاء كم طويل- قياس : XXL",38,38,"XXL",null,"بلوزة قطنية زرقاء كم طويل- قياس : XXL",110000,null,null,null,"بلوزة قطنية زرقاء كم طويل"]
["O03","CA-BL-LS-Turq","CA-BL-LS-Turq-10","بلوزة قطنية تركواز كم  طويلPOLO - قياس : 10",24,24,10,null,"بلوزة قطنية تركواز كم  طويلPOLO - قياس : 10",95000,null,null,null,"بلوزة قطنية تركواز كم  طويلPOLO "]
["O03","CA-BL-LS-Turq","CA-BL-LS-Turq-12","بلوزة قطنية تركواز كم  طويلPOLO - قياس : 12",96,96,12,null,"بلوزة قطنية تركواز كم  طويلPOLO - قياس : 12",95000,null,null,null,"بلوزة قطنية تركواز كم  طويلPOLO "]
["O03","CA-BL-LS-Turq","CA-BL-LS-Turq-14","بلوزة قطنية تركواز كم  طويلPOLO - قياس : 14",74,73,14,null,"بلوزة قطنية تركواز كم  طويلPOLO - قياس : 14",95000,null,null,null,"بلوزة قطنية تركواز كم  طويلPOLO "]
["O03","CA-BL-LS-Turq","CA-BL-LS-Turq-16","بلوزة قطنية تركواز كم  طويلPOLO - قياس : 16",19,18,16,null,"بلوزة قطنية تركواز كم  طويلPOLO - قياس : 16",95000,null,null,null,"بلوزة قطنية تركواز كم  طويلPOLO "]
["O03","CA-BL-LS-Turq","CA-BL-LS-Turq-18","بلوزة قطنية تركواز كم  طويلPOLO - قياس : 18",27,25,18,null,"بلوزة قطنية تركواز كم  طويلPOLO - قياس : 18",95000,null,null,null,"بلوزة قطنية تركواز كم  طويلPOLO "]
["O03","CA-BL-LS-Turq","CA-BL-LS-Turq-S","بلوزة قطنية تركواز كم  طويلPOLO - قياس : S",82,81,"S",null,"بلوزة قطنية تركواز كم  طويلPOLO - قياس : S",95000,null,null,null,"بلوزة قطنية تركواز كم  طويلPOLO "]
["O03","CA-BL-LS-Turq","CA-BL-LS-Turq-M","بلوزة قطنية تركواز كم  طويلPOLO - قياس : M",2,2,"M",null,"بلوزة قطنية تركواز كم  طويلPOLO - قياس : M",95000,null,null,null,"بلوزة قطنية تركواز كم  طويلPOLO "]
["O03","CA-BL-LS-Turq","CA-BL-LS-Turq-L","بلوزة قطنية تركواز كم  طويلPOLO - قياس : L",43,43,"L",null,"بلوزة قطنية تركواز كم  طويلPOLO - قياس : L",95000,null,null,null,"بلوزة قطنية تركواز كم  طويلPOLO "]
["O03","CA-BL-LS-Turq","CA-BL-LS-Turq-XL","بلوزة قطنية تركواز كم  طويلPOLO - قياس : XL",55,55,"XL",null,"بلوزة قطنية تركواز كم  طويلPOLO - قياس : XL",95000,null,null,null,"بلوزة قطنية تركواز كم  طويلPOLO "]
["O03","CA-BL-LS-Turq","CA-BL-LS-Turq-XXL","بلوزة قطنية تركواز كم  طويلPOLO - قياس : XXL",35,35,"XXL",null,"بلوزة قطنية تركواز كم  طويلPOLO - قياس : XXL",95000,null,null,null,"بلوزة قطنية تركواز كم  طويلPOLO "]
["O04","CA-BL-SS-Turq","CA-BL-SS-Turq-10","بلوزة قطنية تركواز كم قصير POLO - قياس : 10",41,41,10,null,"بلوزة قطنية تركواز كم قصير POLO - قياس : 10",80000,null,null,null,"بلوزة قطنية تركواز كم قصير POLO "]
["O04","CA-BL-SS-Turq","CA-BL-SS-Turq-12","بلوزة قطنية تركواز كم قصير POLO - قياس : 12",139,139,12,null,"بلوزة قطنية تركواز كم قصير POLO - قياس : 12",80000,null,null,null,"بلوزة قطنية تركواز كم قصير POLO "]
["O04","CA-BL-SS-Turq","CA-BL-SS-Turq-14","بلوزة قطنية تركواز كم قصير POLO - قياس : 14",23,22,14,null,"بلوزة قطنية تركواز كم قصير POLO - قياس : 14",80000,null,null,null,"بلوزة قطنية تركواز كم قصير POLO "]
["O04","CA-BL-SS-Turq","CA-BL-SS-Turq-16","بلوزة قطنية تركواز كم قصير POLO - قياس : 16",0,0,16,null,"بلوزة قطنية تركواز كم قصير POLO - قياس : 16",80000,null,null,null,"بلوزة قطنية تركواز كم قصير POLO "]
["O04","CA-BL-SS-Turq","CA-BL-SS-Turq-18","بلوزة قطنية تركواز كم قصير POLO - قياس : 18",7,7,18,null,"بلوزة قطنية تركواز كم قصير POLO - قياس : 18",80000,null,null,null,"بلوزة قطنية تركواز كم قصير POLO "]
["O04","CA-BL-SS-Turq","CA-BL-SS-Turq-S","بلوزة قطنية تركواز كم قصير POLO - قياس : S",6,6,"S",null,"بلوزة قطنية تركواز كم قصير POLO - قياس : S",80000,null,null,null,"بلوزة قطنية تركواز كم قصير POLO "]
["O04","CA-BL-SS-Turq","CA-BL-SS-Turq-M","بلوزة قطنية تركواز كم قصير POLO - قياس : M",29,29,"M",null,"بلوزة قطنية تركواز كم قصير POLO - قياس : M",80000,null,null,null,"بلوزة قطنية تركواز كم قصير POLO "]
["O04","CA-BL-SS-Turq","CA-BL-SS-Turq-L","بلوزة قطنية تركواز كم قصير POLO - قياس : L",89,89,"L",null,"بلوزة قطنية تركواز كم قصير POLO - قياس : L",80000,null,null,null,"بلوزة قطنية تركواز كم قصير POLO "]
["O04","CA-BL-SS-Turq","CA-BL-SS-Turq-XL","بلوزة قطنية تركواز كم قصير POLO - قياس : XL",27,27,"XL",null,"بلوزة قطنية تركواز كم قصير POLO - قياس : XL",80000,null,null,null,"بلوزة قطنية تركواز كم قصير POLO "]
["O04","CA-BL-SS-Turq","CA-BL-SS-Turq-XXL","بلوزة قطنية تركواز كم قصير POLO - قياس : XXL",2,2,"XXL",null,"بلوزة قطنية تركواز كم قصير POLO - قياس : XXL",80000,null,null,null,"بلوزة قطنية تركواز كم قصير POLO "]
["O05","CA-BL-SS-Car","CA-BL-SS-Car-4","قميص كارو كم قصير- قياس : 4",100,100,4,null,"قميص كارو كم قصير- قياس : 4",50000,null,null,null,"قميص كارو كم قصير"]
["O05","CA-BL-SS-Car","CA-BL-SS-Car-14","قميص كارو كم قصير- قياس : 14",12,12,14,null,"قميص كارو كم قصير- قياس : 14",50000,null,null,null,"قميص كارو كم قصير"]
["O05","CA-BL-SS-Car","CA-BL-SS-Car-16","قميص كارو كم قصير- قياس : 16",69,69,16,null,"قميص كارو كم قصير- قياس : 16",50000,null,null,null,"قميص كارو كم قصير"]
["O05","CA-BL-SS-Car","CA-BL-SS-Car-S","قميص كارو كم قصير- قياس : S",61,60,"S",null,"قميص كارو كم قصير- قياس : S",50000,null,null,null,"قميص كارو كم قصير"]
["O06","CA-BL-LS-Car","CA-BL-LS-Car-4","قميص كارو كم طويل- قياس : 4",44,44,4,null,"قميص كارو كم طويل- قياس : 4",50000,null,null,null,"قميص كارو كم طويل"]
["O06","CA-BL-LS-Car","CA-BL-LS-Car-14","قميص كارو كم طويل- قياس : 14",36,36,14,null,"قميص كارو كم طويل- قياس : 14",50000,null,null,null,"قميص كارو كم طويل"]
["O06","CA-BL-LS-Car","CA-BL-LS-Car-16","قميص كارو كم طويل- قياس : 16",215,214,16,null,"قميص كارو كم طويل- قياس : 16",50000,null,null,null,"قميص كارو كم طويل"]
["O06","CA-BL-LS-Car","CA-BL-LS-Car-S","قميص كارو كم طويل- قياس : S",86,86,"S",null,"قميص كارو كم طويل- قياس : S",50000,null,null,null,"قميص كارو كم طويل"]
["O07","CA-Chazwel","CA-Chazwel-4","شازوبل بناتي افرادي- قياس : 4",49,49,4,null,"شازوبل بناتي افرادي- قياس : 4",80000,null,null,null,"شازوبل بناتي افرادي"]
["O07","CA-Chazwel","CA-Chazwel-6","شازوبل بناتي افرادي- قياس : 6",120,120,6,null,"شازوبل بناتي افرادي- قياس : 6",80000,null,null,null,"شازوبل بناتي افرادي"]
["O07","CA-Chazwel","CA-Chazwel-XL","شازوبل بناتي افرادي- قياس : XL",2,0,"XL",null,"شازوبل بناتي افرادي- قياس : XL",80000,null,null,null,"شازوبل بناتي افرادي"]
["O08","CA-F-LS-White","CA-F-LS-White-4","قميص ابيض بناتي- قياس : 4",53,53,4,null,"قميص ابيض بناتي- قياس : 4",50000,null,null,null,"قميص ابيض بناتي"]
["O08","CA-F-LS-White","CA-F-LS-White-6","قميص ابيض بناتي- قياس : 6",56,56,6,null,"قميص ابيض بناتي- قياس : 6",50000,null,null,null,"قميص ابيض بناتي"]
["O08","CA-F-LS-White","CA-F-LS-White-7","قميص ابيض بناتي- قياس : 7",2,2,7,null,"قميص ابيض بناتي- قياس : 7",50000,null,null,null,"قميص ابيض بناتي"]
["O08","CA-F-LS-White","CA-F-LS-White-12","قميص ابيض بناتي- قياس : 12",1,1,12,null,"قميص ابيض بناتي- قياس : 12",50000,null,null,null,"قميص ابيض بناتي"]
["O08","CA-F-LS-White","CA-F-LS-White-14","قميص ابيض بناتي- قياس : 14",47,47,14,null,"قميص ابيض بناتي- قياس : 14",50000,null,null,null,"قميص ابيض بناتي"]
["O08","CA-F-LS-White","CA-F-LS-White-S","قميص ابيض بناتي- قياس : S",22,22,"S",null,"قميص ابيض بناتي- قياس : S",50000,null,null,null,"قميص ابيض بناتي"]
["O08","CA-F-LS-White","CA-F-LS-White-M","قميص ابيض بناتي- قياس : M",25,25,"M",null,"قميص ابيض بناتي- قياس : M",50000,null,null,null,"قميص ابيض بناتي"]
["O08","CA-F-LS-White","CA-F-LS-White-L","قميص ابيض بناتي- قياس : L",23,23,"L",null,"قميص ابيض بناتي- قياس : L",50000,null,null,null,"قميص ابيض بناتي"]
["O08","CA-F-LS-White","CA-F-LS-White-XL","قميص ابيض بناتي- قياس : XL",12,12,"XL",null,"قميص ابيض بناتي- قياس : XL",50000,null,null,null,"قميص ابيض بناتي"]
["O09","CA-SpSuit-Sum","CA-SpSuit-Sum-3XS","طقم رياضة صيفي. TECTEL- قياس : 3XS",99,97,"3XS",null,"طقم رياضة صيفي. TECTEL- قياس : 3XS",190000,null,null,null,"طقم رياضة صيفي. TECTEL"]
["O09","CA-SpSuit-Sum","CA-SpSuit-Sum-2XS","طقم رياضة صيفي. TECTEL- قياس : 2XS",120,115,"2XS",null,"طقم رياضة صيفي. TECTEL- قياس : 2XS",190000,null,null,null,"طقم رياضة صيفي. TECTEL"]
["O09","CA-SpSuit-Sum","CA-SpSuit-Sum-XS","طقم رياضة صيفي. TECTEL- قياس : XS",133,129,"XS",null,"طقم رياضة صيفي. TECTEL- قياس : XS",190000,null,null,null,"طقم رياضة صيفي. TECTEL"]
["O09","CA-SpSuit-Sum","CA-SpSuit-Sum-S","طقم رياضة صيفي. TECTEL- قياس : S",131,127,"S",null,"طقم رياضة صيفي. TECTEL- قياس : S",190000,null,null,null,"طقم رياضة صيفي. TECTEL"]
["O09","CA-SpSuit-Sum","CA-SpSuit-Sum-M","طقم رياضة صيفي. TECTEL- قياس : M",127,124,"M",null,"طقم رياضة صيفي. TECTEL- قياس : M",190000,null,null,null,"طقم رياضة صيفي. TECTEL"]
["O09","CA-SpSuit-Sum","CA-SpSuit-Sum-L","طقم رياضة صيفي. TECTEL- قياس : L",59,57,"L",null,"طقم رياضة صيفي. TECTEL- قياس : L",190000,null,null,null,"طقم رياضة صيفي. TECTEL"]
["O09","CA-SpSuit-Sum","CA-SpSuit-Sum-XL","طقم رياضة صيفي. TECTEL- قياس : XL",117,116,"XL",null,"طقم رياضة صيفي. TECTEL- قياس : XL",190000,null,null,null,"طقم رياضة صيفي. TECTEL"]
["O09","CA-SpSuit-Sum","CA-SpSuit-Sum-XXL","طقم رياضة صيفي. TECTEL- قياس : XXL",83,83,"XXL",null,"طقم رياضة صيفي. TECTEL- قياس : XXL",190000,null,null,null,"طقم رياضة صيفي. TECTEL"]
["O09","CA-SpSuit-Sum","CA-SpSuit-Sum-3XL","طقم رياضة صيفي. TECTEL- قياس : 3XL",41,41,"3XL",null,"طقم رياضة صيفي. TECTEL- قياس : 3XL",190000,null,null,null,"طقم رياضة صيفي. TECTEL"]
["O10","CA-SpSuit-Win","CA-SpSuit-Win-4","طقم رياضة شتوي- قياس : 4",39,36,4,null,"طقم رياضة شتوي- قياس : 4",295000,null,null,null,"طقم رياضة شتوي"]
["O10","CA-SpSuit-Win","CA-SpSuit-Win-6","طقم رياضة شتوي- قياس : 6",195,188,6,null,"طقم رياضة شتوي- قياس : 6",295000,null,null,null,"طقم رياضة شتوي"]
["O10","CA-SpSuit-Win","CA-SpSuit-Win-8","طقم رياضة شتوي- قياس : 8",105,102,8,null,"طقم رياضة شتوي- قياس : 8",295000,null,null,null,"طقم رياضة شتوي"]
["O10","CA-SpSuit-Win","CA-SpSuit-Win-10","طقم رياضة شتوي- قياس : 10",100,89,10,null,"طقم رياضة شتوي- قياس : 10",295000,null,null,null,"طقم رياضة شتوي"]
["O10","CA-SpSuit-Win","CA-SpSuit-Win-12","طقم رياضة شتوي- قياس : 12",226,219,12,null,"طقم رياضة شتوي- قياس : 12",295000,null,null,null,"طقم رياضة شتوي"]
["O10","CA-SpSuit-Win","CA-SpSuit-Win-14","طقم رياضة شتوي- قياس : 14",139,134,14,null,"طقم رياضة شتوي- قياس : 14",295000,null,null,null,"طقم رياضة شتوي"]
["O10","CA-SpSuit-Win","CA-SpSuit-Win-16","طقم رياضة شتوي- قياس : 16",112,110,16,null,"طقم رياضة شتوي- قياس : 16",295000,null,null,null,"طقم رياضة شتوي"]
["O10","CA-SpSuit-Win","CA-SpSuit-Win-S","طقم رياضة شتوي- قياس : S",99,97,"S",null,"طقم رياضة شتوي- قياس : S",295000,null,null,null,"طقم رياضة شتوي"]
["O10","CA-SpSuit-Win","CA-SpSuit-Win-M","طقم رياضة شتوي- قياس : M",55,55,"M",null,"طقم رياضة شتوي- قياس : M",295000,null,null,null,"طقم رياضة شتوي"]
["O10","CA-SpSuit-Win","CA-SpSuit-Win-L","طقم رياضة شتوي- قياس : L",153,152,"L",null,"طقم رياضة شتوي- قياس : L",295000,null,null,"Splitted","طقم رياضة شتوي"]
["O10","CA-SpSuit-Win","CA-SpSuit-Win-XL","طقم رياضة شتوي- قياس : XL",100,99,"XL",null,"طقم رياضة شتوي- قياس : XL",295000,null,null,null,"طقم رياضة شتوي"]
["O10","CA-SpSuit-Win","CA-SpSuit-Win-XXL","طقم رياضة شتوي- قياس : XXL",42,42,"XXL",null,"طقم رياضة شتوي- قياس : XXL",295000,null,null,null,"طقم رياضة شتوي"]
["O11","CA-SpShort","CA-SpShort-4","شورت رياضة قطن- قياس : 4",26,25,4,null,"شورت رياضة قطن- قياس : 4",55000,null,null,null,"شورت رياضة قطن"]
["O11","CA-SpShort","CA-SpShort-6","شورت رياضة قطن- قياس : 6",65,60,6,null,"شورت رياضة قطن- قياس : 6",55000,null,null,null,"شورت رياضة قطن"]
["O11","CA-SpShort","CA-SpShort-8","شورت رياضة قطن- قياس : 8",78,67,8,null,"شورت رياضة قطن- قياس : 8",55000,null,null,null,"شورت رياضة قطن"]
["O11","CA-SpShort","CA-SpShort-10","شورت رياضة قطن- قياس : 10",74,57,10,null,"شورت رياضة قطن- قياس : 10",55000,null,null,null,"شورت رياضة قطن"]
["O11","CA-SpShort","CA-SpShort-12","شورت رياضة قطن- قياس : 12",77,67,12,null,"شورت رياضة قطن- قياس : 12",55000,null,null,null,"شورت رياضة قطن"]
["O11","CA-SpShort","CA-SpShort-14","شورت رياضة قطن- قياس : 14",135,122,14,null,"شورت رياضة قطن- قياس : 14",55000,null,null,null,"شورت رياضة قطن"]
["O11","CA-SpShort","CA-SpShort-S","شورت رياضة قطن- قياس : S",10,7,"S",null,"شورت رياضة قطن- قياس : S",55000,null,null,null,"شورت رياضة قطن"]
["O12","CA-SPPant","CA-SPPant-4","بنطلون رياضة افرادي- قياس : 4",57,56,4,null,"بنطلون رياضة افرادي- قياس : 4",160000,null,null,null,"بنطلون رياضة افرادي"]
["O12","CA-SPPant","CA-SPPant-6","بنطلون رياضة افرادي- قياس : 6",92,89,6,null,"بنطلون رياضة افرادي- قياس : 6",160000,null,null,null,"بنطلون رياضة افرادي"]
["O12","CA-SPPant","CA-SPPant-8","بنطلون رياضة افرادي- قياس : 8",50,42,8,null,"بنطلون رياضة افرادي- قياس : 8",160000,null,null,null,"بنطلون رياضة افرادي"]
["O12","CA-SPPant","CA-SPPant-10","بنطلون رياضة افرادي- قياس : 10",45,42,10,null,"بنطلون رياضة افرادي- قياس : 10",160000,null,null,null,"بنطلون رياضة افرادي"]
["O12","CA-SPPant","CA-SPPant-12","بنطلون رياضة افرادي- قياس : 12",25,21,12,null,"بنطلون رياضة افرادي- قياس : 12",160000,null,null,null,"بنطلون رياضة افرادي"]
["O12","CA-SPPant","CA-SPPant-14","بنطلون رياضة افرادي- قياس : 14",24,21,14,null,"بنطلون رياضة افرادي- قياس : 14",160000,null,null,null,"بنطلون رياضة افرادي"]
["O12","CA-SPPant","CA-SPPant-16","بنطلون رياضة افرادي- قياس : 16",53,48,16,null,"بنطلون رياضة افرادي- قياس : 16",160000,null,null,null,"بنطلون رياضة افرادي"]
["O12","CA-SPPant","CA-SPPant-S","بنطلون رياضة افرادي- قياس : S",87,84,"S",null,"بنطلون رياضة افرادي- قياس : S",160000,null,null,null,"بنطلون رياضة افرادي"]
["O12","CA-SPPant","CA-SPPant-M","بنطلون رياضة افرادي- قياس : M",0,1,"M",null,"بنطلون رياضة افرادي- قياس : M",160000,null,null,null,"بنطلون رياضة افرادي"]
["O12","CA-SPPant","CA-SPPant-L","بنطلون رياضة افرادي- قياس : L",1,0,"L",null,"بنطلون رياضة افرادي- قياس : L",160000,null,null,null,"بنطلون رياضة افرادي"]
["O12","CA-SPPant","CA-SPPant-XL","بنطلون رياضة افرادي- قياس : XL",51,51,"XL",null,"بنطلون رياضة افرادي- قياس : XL",160000,null,null,null,"بنطلون رياضة افرادي"]
["O12","CA-SPPant","CA-SPPant-XXL","بنطلون رياضة افرادي- قياس : XXL",27,27,"XXL",null,"بنطلون رياضة افرادي- قياس : XXL",160000,null,null,null,"بنطلون رياضة افرادي"]
["O13","C0-uniform","C0-uniform-3","مريول روضات جديد- قياس : 3",56,56,3,null,"مريول روضات جديد- قياس : 3",50000,null,null,null,"مريول روضات جديد"]
["O13","C0-uniform","C0-uniform-4","مريول روضات جديد- قياس : 4",255,255,4,null,"مريول روضات جديد- قياس : 4",50000,null,null,null,"مريول روضات جديد"]
["O13","C0-uniform","C0-uniform-5","مريول روضات جديد- قياس : 5",162,162,5,null,"مريول روضات جديد- قياس : 5",50000,null,null,null,"مريول روضات جديد"]
["O13","C0-uniform","C0-uniform-6","مريول روضات جديد- قياس : 6",25,25,6,null,"مريول روضات جديد- قياس : 6",50000,null,null,null,"مريول روضات جديد"]
["O13","C0-uniform","C0-uniform-7","مريول روضات جديد- قياس : 7",20,20,7,null,"مريول روضات جديد- قياس : 7",50000,null,null,null,"مريول روضات جديد"]
["O13","C0-uniform","C0-uniform-8","مريول روضات جديد- قياس : 8",110,110,8,null,"مريول روضات جديد- قياس : 8",50000,null,null,null,"مريول روضات جديد"]
["O14","C0-BL-Wool","C0-BL-Wool-0","بلوزة صوف كحلي روضات- قياس : 0","-","-",0,null,"بلوزة صوف كحلي روضات- قياس : 0",40000,null,null,null,"بلوزة صوف كحلي روضات"]
["O14","C0-BL-Wool","C0-BL-Wool-1","بلوزة صوف كحلي روضات- قياس : 1","-","-",1,null,"بلوزة صوف كحلي روضات- قياس : 1",40000,null,null,null,"بلوزة صوف كحلي روضات"]
["O14","C0-BL-Wool","C0-BL-Wool-2","بلوزة صوف كحلي روضات- قياس : 2","-","-",2,null,"بلوزة صوف كحلي روضات- قياس : 2",40000,null,null,null,"بلوزة صوف كحلي روضات"]
["O14","C0-BL-Wool","C0-BL-Wool-3","بلوزة صوف كحلي روضات- قياس : 3","-","-",3,null,"بلوزة صوف كحلي روضات- قياس : 3",40000,null,null,null,"بلوزة صوف كحلي روضات"]
["O15","CA-BL-Wool","CA-BL-Wool-4","بلوزة صوف كحلية- قياس : 4","-","-",4,null,"بلوزة صوف كحلية- قياس : 4",50000,null,null,null,"بلوزة صوف كحلية"]
["O15","CA-BL-Wool","CA-BL-Wool-5","بلوزة صوف كحلية- قياس : 5","-","-",5,null,"بلوزة صوف كحلية- قياس : 5",50000,null,null,null,"بلوزة صوف كحلية"]
["O15","CA-BL-Wool","CA-BL-Wool-6","بلوزة صوف كحلية- قياس : 6",19,19,6,null,"بلوزة صوف كحلية- قياس : 6",50000,null,null,null,"بلوزة صوف كحلية"]
["O15","CA-BL-Wool","CA-BL-Wool-7","بلوزة صوف كحلية- قياس : 7",40,40,7,null,"بلوزة صوف كحلية- قياس : 7",50000,null,null,null,"بلوزة صوف كحلية"]
["O15","CA-BL-Wool","CA-BL-Wool-M","بلوزة صوف كحلية- قياس : M",44,44,"M",null,"بلوزة صوف كحلية- قياس : M",50000,null,null,null,"بلوزة صوف كحلية"]
["O16","CA-BL-SS-White","CA-BL-SS-White-14-16-S","بلوزة قطنية كم قصير ابيض- قياس : 14-16-S",178,178,"14-16-S",null,"بلوزة قطنية كم قصير ابيض- قياس : 14-16-S",45000,null,null,null,"بلوزة قطنية كم قصير ابيض"]
["O16","CA-BL-SS-White","CA-BL-SS-White-M","بلوزة قطنية كم قصير ابيض- قياس : M",42,42,"M",null,"بلوزة قطنية كم قصير ابيض- قياس : M",45000,null,null,null,"بلوزة قطنية كم قصير ابيض"]
["O16","CA-BL-SS-White","CA-BL-SS-White-XL+L","بلوزة قطنية كم قصير ابيض- قياس : XL+L","-","-","XL+L",null,"بلوزة قطنية كم قصير ابيض- قياس : XL+L",45000,null,null,null,"بلوزة قطنية كم قصير ابيض"]
["O17","CA-JacNavy-Win","CA-JacNavy-Win-4","جاكيت شتوي كحلي- قياس : 4",2,2,4,null,"جاكيت شتوي كحلي- قياس : 4",135000,null,null,null,"جاكيت شتوي كحلي"]
["O17","CA-JacNavy-Win","CA-JacNavy-Win-6","جاكيت شتوي كحلي- قياس : 6",101,89,6,null,"جاكيت شتوي كحلي- قياس : 6",135000,null,null,null,"جاكيت شتوي كحلي"]
["O17","CA-JacNavy-Win","CA-JacNavy-Win-8","جاكيت شتوي كحلي- قياس : 8",63,35,8,null,"جاكيت شتوي كحلي- قياس : 8",135000,null,null,null,"جاكيت شتوي كحلي"]
["O17","CA-JacNavy-Win","CA-JacNavy-Win-10","جاكيت شتوي كحلي- قياس : 10",194,180,10,null,"جاكيت شتوي كحلي- قياس : 10",135000,null,null,null,"جاكيت شتوي كحلي"]
["O17","CA-JacNavy-Win","CA-JacNavy-Win-12","جاكيت شتوي كحلي- قياس : 12",112,99,12,null,"جاكيت شتوي كحلي- قياس : 12",135000,null,null,null,"جاكيت شتوي كحلي"]
["O17","CA-JacNavy-Win","CA-JacNavy-Win-14","جاكيت شتوي كحلي- قياس : 14",137,131,14,null,"جاكيت شتوي كحلي- قياس : 14",135000,null,null,null,"جاكيت شتوي كحلي"]
["O17","CA-JacNavy-Win","CA-JacNavy-Win-16","جاكيت شتوي كحلي- قياس : 16",93,80,16,null,"جاكيت شتوي كحلي- قياس : 16",135000,null,null,null,"جاكيت شتوي كحلي"]
["O17","CA-JacNavy-Win","CA-JacNavy-Win-S","جاكيت شتوي كحلي- قياس : S",152,143,"S",null,"جاكيت شتوي كحلي- قياس : S",135000,null,null,null,"جاكيت شتوي كحلي"]
["O17","CA-JacNavy-Win","CA-JacNavy-Win-M","جاكيت شتوي كحلي- قياس : M",67,59,"M",null,"جاكيت شتوي كحلي- قياس : M",135000,null,null,null,"جاكيت شتوي كحلي"]
["O17","CA-JacNavy-Win","CA-JacNavy-Win-L","جاكيت شتوي كحلي- قياس : L",136,135,"L",null,"جاكيت شتوي كحلي- قياس : L",135000,null,null,null,"جاكيت شتوي كحلي"]
["O17","CA-JacNavy-Win","CA-JacNavy-Win-XL","جاكيت شتوي كحلي- قياس : XL",131,131,"XL",null,"جاكيت شتوي كحلي- قياس : XL",135000,null,null,null,"جاكيت شتوي كحلي"]
["O17","CA-JacNavy-Win","CA-JacNavy-Win-XXL","جاكيت شتوي كحلي- قياس : XXL",13,12,"XXL",null,"جاكيت شتوي كحلي- قياس : XXL",135000,null,null,null,"جاكيت شتوي كحلي"]
["O17","CA-JacNavy-Win","CA-JacNavy-Win-XS","جاكيت شتوي كحلي- قياس : XS",1,1,"XS",null,"جاكيت شتوي كحلي- قياس : XS",135000,null,null,null,"جاكيت شتوي كحلي"]
["O18","CA-Sp-Jacket","CA-Sp-Jacket-4","جاكيت رياضة افرادي- قياس : 4",34,34,4,null,"جاكيت رياضة افرادي- قياس : 4",135000,null,null,null,"جاكيت رياضة افرادي"]
["O18","CA-Sp-Jacket","CA-Sp-Jacket-6","جاكيت رياضة افرادي- قياس : 6",44,45,6,null,"جاكيت رياضة افرادي- قياس : 6",135000,null,null,null,"جاكيت رياضة افرادي"]
["O18","CA-Sp-Jacket","CA-Sp-Jacket-8","جاكيت رياضة افرادي- قياس : 8",50,46,8,null,"جاكيت رياضة افرادي- قياس : 8",135000,null,null,null,"جاكيت رياضة افرادي"]
["O18","CA-Sp-Jacket","CA-Sp-Jacket-10","جاكيت رياضة افرادي- قياس : 10",46,43,10,null,"جاكيت رياضة افرادي- قياس : 10",135000,null,null,null,"جاكيت رياضة افرادي"]
["O18","CA-Sp-Jacket","CA-Sp-Jacket-12","جاكيت رياضة افرادي- قياس : 12",91,89,12,null,"جاكيت رياضة افرادي- قياس : 12",135000,null,null,null,"جاكيت رياضة افرادي"]
["O18","CA-Sp-Jacket","CA-Sp-Jacket-14","جاكيت رياضة افرادي- قياس : 14",174,171,14,null,"جاكيت رياضة افرادي- قياس : 14",135000,null,null,null,"جاكيت رياضة افرادي"]
["O18","CA-Sp-Jacket","CA-Sp-Jacket-16","جاكيت رياضة افرادي- قياس : 16",78,76,16,null,"جاكيت رياضة افرادي- قياس : 16",135000,null,null,null,"جاكيت رياضة افرادي"]
["O18","CA-Sp-Jacket","CA-Sp-Jacket-S","جاكيت رياضة افرادي- قياس : S",90,90,"S",null,"جاكيت رياضة افرادي- قياس : S",135000,null,null,null,"جاكيت رياضة افرادي"]
["O18","CA-Sp-Jacket","CA-Sp-Jacket-M","جاكيت رياضة افرادي- قياس : M",45,43,"M",null,"جاكيت رياضة افرادي- قياس : M",135000,null,null,null,"جاكيت رياضة افرادي"]
["O18","CA-Sp-Jacket","CA-Sp-Jacket-L","جاكيت رياضة افرادي- قياس : L",32,33,"L",null,"جاكيت رياضة افرادي- قياس : L",135000,null,null,null,"جاكيت رياضة افرادي"]
["O18","CA-Sp-Jacket","CA-Sp-Jacket-XL","جاكيت رياضة افرادي- قياس : XL","-","-","XL",null,"جاكيت رياضة افرادي- قياس : XL",135000,null,null,null,"جاكيت رياضة افرادي"]
["O18","CA-Sp-Jacket","CA-Sp-Jacket-XXL","جاكيت رياضة افرادي- قياس : XXL","-","-","XXL",null,"جاكيت رياضة افرادي- قياس : XXL",135000,null,null,null,"جاكيت رياضة افرادي"]
["O19","CA-SP-Blouse","CA-SP-Blouse-3XS","TECTELبلوزة رياضة  - قياس : 3XS",1,0,"3XS",null,"TECTELبلوزة رياضة  - قياس : 3XS",100000,null,null,null,"TECTELبلوزة رياضة  "]
["O19","CA-SP-Blouse","CA-SP-Blouse-2XS","TECTELبلوزة رياضة  - قياس : 2XS",15,13,"2XS",null,"TECTELبلوزة رياضة  - قياس : 2XS",100000,null,null,null,"TECTELبلوزة رياضة  "]
["O19","CA-SP-Blouse","CA-SP-Blouse-XS","TECTELبلوزة رياضة  - قياس : XS",51,50,"XS",null,"TECTELبلوزة رياضة  - قياس : XS",100000,null,null,null,"TECTELبلوزة رياضة  "]
["O19","CA-SP-Blouse","CA-SP-Blouse-S","TECTELبلوزة رياضة  - قياس : S",8,5,"S",null,"TECTELبلوزة رياضة  - قياس : S",100000,null,null,null,"TECTELبلوزة رياضة  "]
["O19","CA-SP-Blouse","CA-SP-Blouse-M","TECTELبلوزة رياضة  - قياس : M",24,22,"M",null,"TECTELبلوزة رياضة  - قياس : M",100000,null,null,null,"TECTELبلوزة رياضة  "]
["O19","CA-SP-Blouse","CA-SP-Blouse-L","TECTELبلوزة رياضة  - قياس : L",141,141,"L",null,"TECTELبلوزة رياضة  - قياس : L",100000,null,null,null,"TECTELبلوزة رياضة  "]
["O19","CA-SP-Blouse","CA-SP-Blouse-XL","TECTELبلوزة رياضة  - قياس : XL",1,1,"XL",null,"TECTELبلوزة رياضة  - قياس : XL",100000,null,null,null,"TECTELبلوزة رياضة  "]
["O20","CA-SP-Short","CA-SP-Short-3XS","شورت رياضة TECTEL- قياس : 3XS",67,67,"3XS",null,"شورت رياضة TECTEL- قياس : 3XS",90000,null,null,null,"شورت رياضة TECTEL"]
["O20","CA-SP-Short","CA-SP-Short-2XS","شورت رياضة TECTEL- قياس : 2XS",133,133,"2XS",null,"شورت رياضة TECTEL- قياس : 2XS",90000,null,null,null,"شورت رياضة TECTEL"]
["O20","CA-SP-Short","CA-SP-Short-XS","شورت رياضة TECTEL- قياس : XS",107,105,"XS",null,"شورت رياضة TECTEL- قياس : XS",90000,null,null,null,"شورت رياضة TECTEL"]
["O20","CA-SP-Short","CA-SP-Short-S","شورت رياضة TECTEL- قياس : S",99,98,"S",null,"شورت رياضة TECTEL- قياس : S",90000,null,null,null,"شورت رياضة TECTEL"]
["O20","CA-SP-Short","CA-SP-Short-M","شورت رياضة TECTEL- قياس : M",65,63,"M",null,"شورت رياضة TECTEL- قياس : M",90000,null,null,null,"شورت رياضة TECTEL"]
["O20","CA-SP-Short","CA-SP-Short-L","شورت رياضة TECTEL- قياس : L",160,159,"L",null,"شورت رياضة TECTEL- قياس : L",90000,null,null,null,"شورت رياضة TECTEL"]
["O20","CA-SP-Short","CA-SP-Short-XL","شورت رياضة TECTEL- قياس : XL",105,104,"XL",null,"شورت رياضة TECTEL- قياس : XL",90000,null,null,null,"شورت رياضة TECTEL"]
["O20","CA-SP-Short","CA-SP-Short-XXL","شورت رياضة TECTEL- قياس : XXL",90,90,"XXL",null,"شورت رياضة TECTEL- قياس : XXL",90000,null,null,null,"شورت رياضة TECTEL"]
["O20","CA-SP-Short","CA-SP-Short-3XL","شورت رياضة TECTEL- قياس : 3XL",42,42,"3XL",null,"شورت رياضة TECTEL- قياس : 3XL",90000,null,null,null,"شورت رياضة TECTEL"]

{"sheet":"InitialStock2021-2022","index":4,"n_rows":21,"n_cols":8,"rows_kept":21,"cut":false,"hidden":true,"merged":[]}
["CategoryNb","Category","Item Description","Total Quantity in Stock","Price (LBP)","Total Price","Notes"]
["O01","CA-BL-SS-Blue","  بلوزة قطنية زرقاء كم قصير ",1521,80000,{"$f":"D2*E2","v":121680000}]
["O02","CA-BL-LS-Blue","بلوزة قطنية زرقاء كم طويل",1237,110000,{"$f":"D3*E3","v":136070000}]
["O03","CA-BL-LS-Turq","بلوزة قطنية تركواز كم  طويلPOLO ",457,95000,43415000]
["O04","CA-BL-SS-Turq","بلوزة قطنية تركواز كم قصير POLO ",363,80000,29040000]
["O05","CA-BL-SS-Car","قميص كارو كم قصير",242,50000,12100000]
["O06","CA-BL-LS-Car","قميص كارو كم طويل",381,50000,19050000]
["O07","CA-Chazwel","شازوبل بناتي افرادي",171,80000,13680000]
["O08","CA-F-LS-White","قميص ابيض بناتي",241,50000,12050000]
["O09","CA-SpSuit-Sum","طقم رياضة صيفي. TECTEL",910,190000,172900000]
["O10","CA-SpSuit-Win","طقم رياضة شتوي",1366,295000,402970000,1365,"splitted"]
["O11","CA-SpShort","شورت رياضة قطن",465,55000,25575000]
["O12","CA-SPPant","بنطلون رياضة افرادي",511,160000,81760000,512,"added from splitted suit"]
["O13","C0-uniform","مريول روضات جديد",628,50000,31400000]
["O14","C0-BL-Wool","بلوزة صوف كحلي روضات",0,40000,0]
["O15","CA-BL-Wool","بلوزة صوف كحلية",103,50000,5150000]
["O16","CA-BL-SS-White","بلوزة قطنية كم قصير ابيض",220,45000,9900000]
["O17","CA-JacNavy-Win","جاكيت شتوي كحلي",1202,135000,162270000]
["O18","CA-Sp-Jacket","جاكيت رياضة افرادي",684,135000,92340000]
["O19","CA-SP-Blouse","TECTELبلوزة رياضة  ",240,100000,24000000]
["O20","CA-SP-Short","شورت رياضة TECTEL",867,90000,78030000]